Workbook

Sheet 目录
A1: 2023年度政府决算公开目录
A2: 一、一般公共预算收入决算表
A3: 二、一般公共预算支出决算表
A4: 三、一般公共预算收支平衡表
A5: 四、一般公共预算经济分类支出决算表
A6: 五、一般公共预算经济分类（基本）支出决算表
A7: 六、一般公共预算税收返还和转移支付决算表
A8: 七、本级一般公共预算收入决算表
A9: 八、本级一般公共预算支出决算表
A10: 九、本级一般公共预算收支平衡表
A11: 十、本级一般公共预算经济分类支出决算表
A12: 十一、本级一般公共预算经济分类科目（基本）支出决算表
A13: 十二、政府性基金收入决算表
A14: 十三、政府性基金支出决算表
A15: 十四、政府性基金收支平衡表
A16: 十五、本级政府性基金收入决算表
A17: 十六、本级政府性基金支出决算表
A18: 十七、本级政府性基金收支平衡表
A19: 十八、政府性基金转移性支付补助执行情况表
A20: 十九、本级预算内基本建设支出决算表
A21: 二十、国有资本经营预算收入决算表
A22: 二十一、国有资本经营预算支出决算表
A23: 二十二、国有资本经营预算收支平衡表
A24: 二十三、本级国有资本经营预算收入决算表
A25: 二十四、本级国有资本经营预算支出决算表
A26: 二十五、本级国有资本经营预算收支平衡表
A27: 二十六、 对下国有资本经营预算转移支付决算表
A28: 二十七、社会保险基金收入决算表
A29: 二十八、社会保险基金支出决算表
A30: 二十九、社会保险基金收支平衡表
A31: 三十、本级社会保险基金收入决算表
A32: 三十一、本级社会保险基金支出决算表
A33: 三十二、本级社会保险基金收支平衡表
A34: 三十三、地方政府一般债务余额
A35: 三十四、地方政府专项债务余额
A36: 三十五、地方政府性债务余额
A37: 三十六、地方政府债券使用情况
A38: 三十七、地方政府债务限额及余额情况
A39: 三十八、政府债务十年到期情况
A40: 三十九、地方政府债务还本付息情况表
A41: 四十、新增一般债券和专项债券情况表
A42: 四十一、专项债券收入、支出及专项收入情况表
A43: 四十二、重大政府投资计划和重大投资项目表

Sheet 1.一般公共预算收入决算表
A1: 2023年盐边县地方一般公共预算收入决算表
E2: 单位：万元，%
A3: 科 目 | B3: 年初预算数 | C3: 调整预算数 | D3: 决 算 数 | E3: 为调整预算 | F3: 为上年决算
A4: 一、税收收入 | B4: 120,000 | C4: 127,000 | D4: 126,738 | E4: =D4/C4*100 -> 99.79 | F4: 155.56
A5: 增值税 | B5: 60,000 | C5: 58,300 | D5: 58,242 | E5: =D5/C5*100 -> 99.90 | F5: 165.13
A6: 消费税
A7: 企业所得税 | B7: 29,000 | C7: 29,300 | D7: 29,166 | E7: 99.54 | F7: 180.61
A8: 个人所得税 | B8: 2,100 | C8: 2,400 | D8: 2,406 | E8: 100.25 | F8: 115.62
A9: 资源税 | B9: 10,200 | C9: 8,600 | D9: 8,569 | E9: 99.64 | F9: 133.10
A10: 城市维护建设税 | B10: 6,000 | C10: 6,400 | D10: 6,352 | E10: 99.25 | F10: 169.25
A11: 房产税 | B11: 2,200 | C11: 2,800 | D11: 2,768 | E11: 98.86 | F11: 199.71
A12: 印花税 | B12: 1,100 | C12: 1,500 | D12: 1,480 | E12: 98.67 | F12: 160.17
A13: 城镇土地使用税 | B13: 3,600 | C13: 5,500 | D13: 5,534 | E13: 100.62 | F13: 159.90
A14: 土地增值税 | B14: 300 | C14: -230 | D14: -228 | E14: 99.13 | F14: -53.15
A15: 车船税 | B15: 650 | C15: 700 | D15: 707 | E15: 101.00 | F15: 112.22
A16: 耕地占用税 | B16: 1,000 | C16: 7,530 | D16: 7,530 | E16: 100.00 | F16: 111.57
A17: 契税 | B17: 1,500 | C17: 1,500 | D17: 1,509 | E17: 100.60 | F17: 81.92
A18: 烟叶税 | B18: 2,000 | C18: 2,400 | D18: 2,391 | E18: 99.63 | F18: 118.96
A19: 环境保护税 | B19: 350 | C19: 300 | D19: 300 | E19: 100.00 | F19: 86.21
A20: 其他税收收入 | D20: 12 | F20: 400.00
A21: 二、非税收入 | B21: 15,000 | C21: 175,000 | D21: 175,384 | E21: 100.22 | F21: 741.36
A22: 专项收入 | B22: 4,000 | C22: 5,800 | D22: 5,893 | E22: 101.60 | F22: 138.20
A23: 行政事业性收费收入 | B23: 600 | C23: 1,400 | D23: 1,469 | E23: 104.93 | F23: 57.81
A24: 罚没收入 | B24: 5,000 | C24: 6,600 | D24: 6,646 | E24: 100.70 | F24: 54.44
A25: 国有资本经营收入
A26: 国有资源（资产）有偿使用收入 | B26: 5,000 | C26: 160,900 | D26: 160,946 | E26: 100.03 | F26: 5,203.56
A27: 捐赠收入
A28: 政府住房基金收入 | B28: 100 | C28: 150 | D28: 162 | E28: 108.00 | F28: 98.78
A29: 其他收入 | B29: 300 | C29: 150 | D29: 268 | E29: 178.67 | F29: 19.31
A30: 地方一般公共预算收入 | B30: 135,000 | C30: 302,000 | D30: 302,122 | E30: 100.04 | F30: 287.38

Sheet 2.一般公共预算支出决算表
A1: 2023年盐边县一般公共预算支出决算表
E2: 单位：万元，%
A3: 科 目 | B3: 年初预算数 | C3: 调整预算数 | D3: 决 算 数 | E3: 为调整预算 | F3: 为上年决算
A4: 一、一般公共服务支出 | B4: 26,144 | C4: 32,751 | D4: 32,044 | E4: =(D4/C4)*100 -> 97.84 | F4: 131.05
A5: 二、外交支出 | B5: 0 | C5: 0 | D5: 0
A6: 三、国防支出 | B6: 0 | C6: 315 | D6: 115 | E6: 36.51
A7: 四、公共安全支出 | B7: 18,172 | C7: 12,734 | D7: 11,527 | E7: 90.52 | F7: 87.04
A8: 五、教育支出 | B8: 39,137 | C8: 38,905 | D8: 36,967 | E8: 95.02 | F8: 101.14
A9: 六、科学技术支出 | B9: 704 | C9: 2,357 | D9: 2,228 | E9: 94.53 | F9: 357.62
A10: 七、文化旅游体育与传媒支出 | B10: 4,072 | C10: 5,434 | D10: 4,709 | E10: 86.66 | F10: 123.73
A11: 八、社会保障和就业支出 | B11: 32,196 | C11: 33,248 | D11: 32,944 | E11: 99.09 | F11: 123.54
A12: 九、卫生健康支出 | B12: 21,925 | C12: 23,542 | D12: 22,727 | E12: 96.54 | F12: 110.89
A13: 十、节能环保支出 | B13: 1,045 | C13: 9,100 | D13: 6,865 | E13: 75.44 | F13: 508.90
A14: 十一、城乡社区支出 | B14: 3,983 | C14: 10,956 | D14: 9,905 | E14: 90.41 | F14: 534.83
A15: 十二、农林水支出 | B15: 40,964 | C15: 73,272 | D15: 55,001 | E15: 75.06 | F15: 116.92
A16: 十三、交通运输支出 | B16: 19,373 | C16: 8,707 | D16: 6,589 | E16: 75.67 | F16: 64.65
A17: 十四、资源勘探工业信息等支出 | B17: 375 | C17: 150 | D17: 150 | E17: 100.00 | F17: 42.86
A18: 十五、商业服务业等支出 | B18: 346 | C18: 1,553 | D18: 1,219 | E18: 78.49 | F18: 371.65
A19: 十六、金融支出 | C19: 108 | D19: 97 | E19: 89.81
A20: 十七、自然资源海洋气象等支出 | B20: 1,466 | C20: 5,258 | D20: 5,256 | E20: 99.96 | F20: 383.37
A21: 十八、住房保障支出 | B21: 10,124 | C21: 26,023 | D21: 22,081 | E21: 84.85 | F21: 250.95
A22: 十九、粮油物资储备支出 | B22: 185 | C22: 1,064 | D22: 874 | E22: 82.14 | F22: 505.20
A23: 二十、灾害防治及应急管理支出 | B23: 3,384 | C23: 5,809 | D23: 5,055 | E23: 87.02 | F23: 237.99
A24: 二十一、预备费 | B24: 2,500 | C24: 0
A25: 二十二、其他支出 | B25: 904 | C25: 2,711 | D25: 2,711 | E25: 100.00 | F25: 320.83
A26: 二十三、债务付息支出 | B26: 5,054 | C26: 4,737 | D26: 4,737 | E26: 100.00 | F26: 100.25
A27: 二十四、债务发行费用支出 | B27: 46 | C27: 20 | D27: 20 | E27: 100.00 | F27: 117.65
A28: 一般公共预算支出 | B28: 232,099 | C28: 298,754 | D28: 263,821 | E28: 88.31 | F28: 128.69

Sheet 3.一般公共预算收支平衡决算表
A1: 2023年盐边县一般公共预算收支决算平衡表
A2: 单位：万元
A3: 科 目 | B3: 决 算 数 | C3: 科 目 | D3: 决 算 数
A4: 一般公共预算收入 | B4: 302,122 | C4: 一般公共预算支出 | D4: 263,821
A5: 上级补助收入 | B5: 120,725 | C5: 补助下级支出 | D5: 0
A6: 返还性收入 | B6: -679 | C6: 返还性支出 | D6: 0
A7: 所得税基数返还收入 | B7: -63 | C7: 所得税基数返还支出 | D7: 0
A8: 成品油税费改革税收返还收入 | B8: 1,124 | C8: 成品油税费改革税收返还支出 | D8: 0
A9: 增值税税收返还收入 | B9: 3,926 | C9: 增值税税收返还支出 | D9: 0
A10: 消费税税收返还收入 | B10: 0 | C10: 消费税税收返还支出
A11: 增值税“五五分享”税收返还收入 | B11: -5,487 | C11: 增值税“五五分享”税收返还支出
A12: 其他返还性收入 | B12: -179 | C12: 其他返还性支出
A13: 一般性转移支付收入 | B13: 106,280 | C13: 一般性转移支付支出
A14: 体制补助收入 | B14: 0 | C14: 体制补助支出
A15: 均衡性转移支付收入 | B15: 31,076 | C15: 均衡性转移支付支出
A16: 县级基本财力保障机制奖补资金收入 | B16: 5,345 | C16: 县级基本财力保障机制奖补资金支出
A17: 结算补助收入 | B17: 1,443 | C17: 结算补助支出
A18: 资源枯竭型城市转移支付补助收入 | B18: 0 | C18: 资源枯竭型城市转移支付补助支出
A19: 企业事业单位划转补助收入 | B19: 42 | C19: 企业事业单位划转补助支出
A20: 产粮(油)大县奖励资金收入 | B20: 0 | C20: 产粮(油)大县奖励资金支出
A21: 重点生态功能区转移支付收入 | B21: 1,200 | C21: 重点生态功能区转移支付支出
A22: 固定数额补助收入 | B22: 12,320 | C22: 固定数额补助支出
A23: 革命老区转移支付收入 | B23: 0 | C23: 革命老区转移支付支出
A24: 民族地区转移支付收入 | B24: 0 | C24: 民族地区转移支付支出
A25: 边境地区转移支付收入 | B25: 0 | C25: 边境地区转移支付支出
A26: 巩固脱贫攻坚成果衔接乡村振兴转移支付收入 | B26: 7,624 | C26: 巩固脱贫攻坚成果衔接乡村振兴转移支付支出
A27: 一般公共服务共同财政事权转移支付收入 | B27: 0 | C27: 一般公共服务共同财政事权转移支付支出
A28: 外交共同财政事权转移支付收入 | B28: 0 | C28: 外交共同财政事权转移支付支出
A29: 国防共同财政事权转移支付收入 | B29: 0 | C29: 国防共同财政事权转移支付支出
A30: 公共安全共同财政事权转移支付收入 | B30: 1,230 | C30: 公共安全共同财政事权转移支付支出
A31: 教育共同财政事权转移支付收入 | B31: 5,610 | C31: 教育共同财政事权转移支付支出
A32: 科学技术共同财政事权转移支付收入 | B32: 67 | C32: 科学技术共同财政事权转移支付支出
A33: 文化旅游体育与传媒共同财政事权转移支付收入 | B33: 239 | C33: 文化旅游体育与传媒共同财政事权转移支付支出
A34: 社会保障和就业共同财政事权转移支付收入 | B34: 6,675 | C34: 社会保障和就业共同财政事权转移支付支出
A35: 医疗卫生共同财政事权转移支付收入 | B35: 3,821 | C35: 医疗卫生共同财政事权转移支付支出
A36: 节能环保共同财政事权转移支付收入 | B36: 1,465 | C36: 节能环保共同财政事权转移支付支出
A37: 城乡社区共同财政事权转移支付收入 | B37: 0 | C37: 城乡社区共同财政事权转移支付支出
A38: 农林水共同财政事权转移支付收入 | B38: 17,599 | C38: 农林水共同财政事权转移支付支出
A39: 交通运输共同财政事权转移支付收入 | B39: 4,364 | C39: 交通运输共同财政事权转移支付支出
A40: 资源勘探工业信息等共同财政事权转移支付收入 | B40: 0 | C40: 资源勘探工业信息等共同财政事权转移支付支出
A41: 商业服务业等共同财政事权转移支付收入 | B41: 0 | C41: 商业服务业等共同财政事权转移支付支出
A42: 金融共同财政事权转移支付收入 | B42: 0 | C42: 金融共同财政事权转移支付支出
A43: 自然资源海洋气象等共同财政事权转移支付收入 | B43: 0 | C43: 自然资源海洋气象等共同财政事权转移支付支出
A44: 住房保障共同财政事权转移支付收入 | B44: 1,143 | C44: 住房保障共同财政事权转移支付支出
A45: 粮油物资储备共同财政事权转移支付收入 | B45: 0 | C45: 粮油物资储备共同财政事权转移支付支出
A46: 灾害防治及应急管理共同财政事权转移支付收入 | B46: 113 | C46: 灾害防治及应急管理共同财政事权转移支付支出
A47: 其他共同财政事权转移支付收入 | B47: 0 | C47: 其他共同财政事权转移支付支出
A48: 增值税留抵退税转移支付收入 | B48: 3,395 | C48: 增值税留抵退税转移支付支出
A49: 其他退税减税降费转移支付收入 | B49: 531 | C49: 其他退税减税降费转移支付支出
A50: 补充县区财力转移支付收入 | B50: 0 | C50: 补充县区财力转移支付支出
A51: 其他一般性转移支付收入 | B51: 978 | C51: 其他一般性转移支付支出
A52: 专项转移支付收入 | B52: 15,124 | C52: 专项转移支付支出
A53: 一般公共服务 | B53: 297 | C53: 一般公共服务
A54: 外交 | B54: 0 | C54: 外交
A55: 国防 | B55: 200 | C55: 国防
A56: 公共安全 | B56: 0 | C56: 公共安全
A57: 教育 | B57: 0 | C57: 教育
A58: 科学技术 | B58: 20 | C58: 科学技术
A59: 文化旅游体育与传媒 | B59: 75 | C59: 文化旅游体育与传媒
A60: 社会保障和就业 | B60: 0 | C60: 社会保障和就业
A61: 卫生健康 | B61: 332 | C61: 卫生健康
A62: 节能环保 | B62: 2,065 | C62: 节能环保
A63: 城乡社区 | B63: 1,110 | C63: 城乡社区
A64: 农林水 | B64: 6,545 | C64: 农林水
A65: 交通运输 | B65: 0 | C65: 交通运输
A66: 资源勘探工业信息等 | B66: 0 | C66: 资源勘探工业信息等
A67: 商业服务业等 | B67: 334 | C67: 商业服务业等
A68: 金融 | B68: 1 | C68: 金融
A69: 自然资源海洋气象等 | B69: 0 | C69: 自然资源海洋气象等
A70: 住房保障 | B70: 3,218 | C70: 住房保障
A71: 粮油物资储备 | B71: 0 | C71: 粮油物资储备
A72: 灾害防治及应急管理 | B72: 927 | C72: 灾害防治及应急管理
A73: 其他收入 | B73: 0 | C73: 其他支出
A74: 上年结余 | B74: 38,270 | C74: 上解上级支出 | D74: 158,914
A75: 调入资金 | C75: 体制上解支出 | D75: 11
A76: 从政府性基金预算调入 | C76: 专项上解支出 | D76: 158,903
A77: 从国有资本经营预算调入 | C77: 调出资金
A78: 从其他资金调入
A79: 债务收入 | C79: 债务还本支出 | D79: 20,953
A80: 地方政府债务收入 | C80: 地方政府一般债务还本支出 | D80: 20,953
A81: 一般债务收入 | C81: 地方政府一般债券还本支出 | D81: 20,953
A82: 地方政府一般债券收入 | C82: 地方政府向外国政府借款还本支出
A83: 地方政府向外国政府借款收入 | C83: 地方政府向国际组织借款还本支出
A84: 地方政府向国际组织借款收入 | C84: 地方政府其他一般债务还本支出
A85: 地方政府其他一般债务收入
A86: 债务转贷收入 | B86: 24,453 | C86: 债务转贷支出
A87: 地方政府一般债务转贷收入 | B87: 24,453 | C87: 地方政府一般债券转贷支出
A88: 地方政府一般债券转贷收入 | B88: 24,453 | C88: 地方政府向外国政府借款转贷支出
A89: 地方政府向外国政府借款转贷收入 | C89: 地方政府向国际组织借款转贷支出
A90: 地方政府向国际组织借款转贷收入 | C90: 地方政府其他一般债务转贷支出
A91: 地方政府其他一般债务转贷收入
A92: 动用预算稳定调节基金 | B92: 12,392 | C92: 安排预算稳定调节基金 | D92: 19,341
A93: 接受其他地区援助收入 | C93: 援助其他地区支出
C94: 年终结余 | D94: 34,933
C95: 结转下年的支出 | D95: 34,933
A96: 收 入 总 计 | B96: 497,962 | C96: 支 出 总 计 | D96: 497,962

Sheet 4.一般公共预算经济分类支出决算表
A1: 2023年盐边县一般公共预算经济分类支出决算表
E2: 单位：万元，%
A3: 科 目 | B3: 年初预算数 | C3: 调整预算数 | D3: 决 算 数 | E3: 为调整预算 | F3: 为上年决算
A4: 机关工资福利支出 | B4: 55,708 | C4: 34,408 | D4: 34,408 | E4: =D4/C4*100 -> 100.00 | F4: 75.16
A5: 工资奖金津补贴 | B5: 36,638 | C5: 22,016 | D5: 22,016 | E5: =D5/C5*100 -> 100.00 | F5: 74.16
A6: 社会保障缴费 | B6: 10,568 | C6: 6,833 | D6: 6,833 | E6: 100.00 | F6: 79.65
A7: 住房公积金 | B7: 3,306 | C7: 2,588 | D7: 2,588 | E7: 100.00 | F7: 78.07
A8: 其他工资福利支出 | B8: 5,196 | C8: 2,971 | D8: 2,971 | E8: 100.00 | F8: 70.81
A9: 机关商品和服务支出 | B9: 45,097 | C9: 48,370 | D9: 39,283 | E9: 81.21 | F9: 83.52
A10: 办公经费 | B10: 5,142 | C10: 9,034 | D10: 8,974 | E10: 99.34 | F10: 174.80
A11: 会议费 | B11: 244 | C11: 1,149 | D11: 1,149 | E11: 100.00 | F11: 470.90
A12: 培训费 | B12: 91 | C12: 546 | D12: 495 | E12: 90.66 | F12: 543.96
A13: 专用材料购置费 | B13: 503 | C13: 2,224 | D13: 1,503 | E13: 67.58 | F13: 285.74
A14: 委托业务费 | B14: 5,873 | C14: 18,656 | D14: 17,652 | E14: 94.62 | F14: 256.01
A15: 公务接待费 | B15: 80 | C15: 148 | D15: 148 | E15: 100.00 | F15: 185.00
A16: 因公出国（境）费用 | B16: 0 | C16: 0 | D16: 0
A17: 公务用车运行维护费 | B17: 458 | C17: 544 | D17: 544 | E17: 100.00 | F17: 118.78
A18: 维修（护）费 | B18: 3,592 | C18: 1,602 | D18: 1,503 | E18: 93.82 | F18: 41.84
A19: 其他商品和服务支出 | B19: 29,114 | C19: 14,467 | D19: 7,315 | E19: 50.56 | F19: 24.37
A20: 机关资本性支出（一） | B20: 18,834 | C20: 65,825 | D20: 51,651 | E20: 78.47 | F20: 314.05
A21: 房屋建筑物购建 | B21: 618 | C21: 3,477 | D21: 3,205 | E21: 92.18 | F21: 518.61
A22: 基础设施建设 | B22: 17,058 | C22: 50,939 | D22: 39,979 | E22: 78.48 | F22: 301.43
A23: 公务用车购置 | B23: 413 | C23: 194 | D23: 194 | E23: 100.00 | F23: 46.97
A24: 土地征迁补偿和安置支出 | B24: 82 | C24: 2,564 | D24: 2,564 | E24: 100.00 | F24: 3,126.83
A25: 设备购置 | B25: 645 | C25: 3,950 | D25: 3,073 | E25: 77.80 | F25: 476.43
A26: 大型修缮 | B26: 18 | C26: 2,410 | D26: 905 | E26: 37.55 | F26: 5,027.78
A27: 其他资本性支出 | B27: 0 | C27: 2,291 | D27: 1,731 | E27: 75.56 | F27: 122.94
A28: 机关资本性支出（二） | B28: 3,462 | C28: 8,956 | D28: 4,409 | E28: 49.23 | F28: 971.15
A29: 房屋建筑物购建 | B29: 2 | C29: 730 | D29: 730 | E29: 100.00 | F29: 36,500.00
A30: 基础设施建设 | B30: 3,239 | C30: 7,619 | D30: 3,112 | E30: 40.85 | F30: 1,302.09
A31: 公务用车购置 | B31: 0 | C31: 0 | D31: 0
A32: 设备购置 | B32: 0 | C32: 550 | D32: 550 | E32: 100.00
A33: 大型修缮 | B33: 0 | C33: 10 | D33: 10 | E33: 100.00
A34: 其他资本性支出 | B34: 221 | C34: 47 | D34: 7 | E34: 14.89 | F34: 3.29
A35: 对事业单位经常性补助 | B35: 52,474 | C35: 70,145 | D35: 67,816 | E35: 96.68 | F35: 144.48
A36: 工资福利支出 | B36: 45,735 | C36: 56,664 | D36: 56,664 | E36: 100.00 | F36: 141.01
A37: 商品和服务支出 | B37: 6,739 | C37: 13,481 | D37: 11,152 | E37: =D37/C37*100 -> 82.72 | F37: 165.12
A38: 其他对事业单位补助 | B38: 0 | C38: 0 | D38: 0
A39: 对事业单位资本性补助 | B39: 990 | C39: 5,644 | D39: 5,222 | E39: 92.52 | F39: 526.94
A40: 资本性支出（一） | B40: 938 | C40: 5,644 | D40: 5,222 | E40: 92.52 | F40: 556.72
A41: 资本性支出（二） | B41: 52 | C41: 0 | D41: 0 | F41: 0.00
A42: 对企业补助 | B42: 2,147 | C42: 8,719 | D42: 6,498 | E42: 74.53 | F42: 302.65
A43: 费用补贴 | B43: 408 | C43: 5,653 | D43: 3,938 | E43: 69.66 | F43: 965.20
A44: 利息补贴 | B44: 0 | C44: 19 | D44: 19 | E44: 100.00
A45: 其他对企业补助 | B45: 1,739 | C45: 3,047 | D45: 2,541 | E45: 83.39 | F45: 146.12
A46: 对企业资本性支出 | C46: 6,473 | D46: 6,473 | E46: 100.00
A47: 对企业资本性支出（一） | C47: 6,473 | D47: 6,473 | E47: 100.00
A48: 对企业资本性支出（二） | C48: 0 | D48: 0
A49: 政府投资基金股权投资 | C49: 0 | D49: 0
A50: 其他对企业资本性支出 | C50: 0 | D50: 0
A51: 对个人和家庭的补助 | B51: 39,889 | C51: 40,737 | D51: 39,337 | E51: 96.56 | F51: 138.58
A52: 社会福利和救助 | B52: 20,040 | C52: 27,611 | D52: 27,496 | E52: 99.58 | F52: 159.26
A53: 助学金 | B53: 903 | C53: 1,155 | D53: 1,155 | E53: 100.00 | F53: 127.91
A54: 个人农业生产补贴 | B54: 0 | C54: 7,169 | D54: 7,020 | E54: 97.92
A55: 离退休费 | B55: 100 | C55: 164 | D55: 164 | E55: 100.00 | F55: 167.35
A56: 其他对个人和家庭补助 | B56: 18,846 | C56: 4,638 | D56: 3,502 | E56: 75.51 | F56: 34.61
A57: 对社会保障基金补助 | B57: 888 | C57: 1,515 | D57: 1,515 | E57: 100.00 | F57: 175.75
A58: 对社会保险基金补助 | B58: 888 | C58: 1,515 | D58: 1,515 | E58: 100.00 | F58: 175.75
A59: 补充全国社会保障基金 | B59: 0 | C59: 0 | D59: 0
A60: 对机关事业单位职业年金的补助 | B60: 0 | C60: 0 | D60: 0
A61: 债务利息及费用支出 | B61: 5,100 | C61: 4,757 | D61: 4,757 | E61: 100.00 | F61: 100.32
A62: 国内债务付息 | B62: 5,054 | C62: 4,737 | D62: 4,737 | E62: 100.00 | F62: 100.25
A63: 国外债务付息 | B63: 0 | C63: 0 | D63: 0
A64: 国内债务发行费用 | B64: 46 | C64: 20 | D64: 20 | E64: 100.00 | F64: 117.65
A65: 国外债务发行费用 | B65: 0 | C65: 0 | D65: 0
A66: 预备费及预留 | B66: 2,500 | C66: 0
A67: 预备费 | B67: 2,500 | C67: 0
A68: 预留 | B68: 0 | C68: 0
A69: 其他支出 | B69: 5,010 | C69: 3,205 | D69: 2,452 | E69: =D69/C69*100 -> 76.51 | F69: 21.85
A70: 国家赔偿费用支出 | B70: 0 | C70: 0 | D70: 0
A71: 对民间非营利组织和群众性自治组织补贴 | B71: 0 | C71: 0 | D71: 0
A72: 经常性赠与 | B72: 0 | C72: 0 | D72: 0
A73: 资本性赠与 | B73: 0 | C73: 0 | D73: 0
A74: 其他支出 | B74: 5,010 | C74: 3,205 | D74: 2,452 | E74: =D74/C74*100 -> 76.51 | F74: 21.85
A75: 一般公共预算支出 | B75: 232,099 | C75: 298,754 | D75: 263,821 | E75: =D75/C75*100 -> 88.31 | F75: 128.69

Sheet 5.一般公共预算经济分类（基本）支出决算表
A1: 2023年盐边县一般公共预算经济分类（基本）支出决算表
E2: 单位：万元，%
A3: 科 目 | B3: 年初预算数 | C3: 调整预算数 | D3: 决 算 数 | E3: 为调整预算 | F3: 为上年决算
A4: 机关工资福利支出 | B4: 55,708 | C4: 33,840 | D4: 33,840 | E4: =D4/C4*100 -> 100.00 | F4: 79.97
A5: 工资奖金津补贴 | B5: 36,638 | C5: 21,543 | D5: 21,543 | E5: =D5/C5*100 -> 100.00 | F5: 78.55
A6: 社会保障缴费 | B6: 10,568 | C6: 6,833 | D6: 6,833 | E6: 100.00 | F6: 84.60
A7: 住房公积金 | B7: 3,306 | C7: 2,588 | D7: 2,588 | E7: 100.00 | F7: 87.43
A8: 其他工资福利支出 | B8: 5,196 | C8: 2,876 | D8: 2,876 | E8: 100.00 | F8: 74.62
A9: 机关商品和服务支出 | B9: 12,897 | C9: 5,217 | D9: 5,217 | E9: 100.00 | F9: 112.70
A10: 办公经费 | B10: 514 | C10: 3,782 | D10: 3,782 | E10: 100.00 | F10: 120.52
A11: 会议费 | B11: 244 | C11: 32 | D11: 32 | E11: 100.00 | F11: 76.19
A12: 培训费 | B12: 91 | C12: 21 | D12: 21 | E12: 100.00 | F12: 84.00
A13: 专用材料购置费 | B13: 403 | C13: 130 | D13: 130 | E13: 100.00 | F13: 481.48
A14: 委托业务费 | B14: 513 | C14: 503 | D14: 503 | E14: 100.00 | F14: 90.63
A15: 公务接待费 | B15: 80 | C15: 8 | D15: 8 | E15: 100.00 | F15: 72.73
A16: 因公出国（境）费用
A17: 公务用车运行维护费 | B17: 458 | C17: 424 | D17: 424 | E17: 100.00 | F17: 294.44
A18: 维修（护）费 | B18: 3,592 | C18: 97 | D18: 97 | E18: 100.00 | F18: 70.80
A19: 其他商品和服务支出 | B19: 7,002 | C19: 220 | D19: 220 | E19: 100.00 | F19: 40.00
A20: 机关资本性支出（一） | B20: 345
A21: 房屋建筑物购建
A22: 基础设施建设
A23: 公务用车购置
A24: 土地征迁补偿和安置支出
A25: 设备购置 | B25: 345
A26: 大型修缮
A27: 其他资本性支出
A28: 机关资本性支出（二）
A29: 房屋建筑物购建
A30: 基础设施建设
A31: 公务用车购置
A32: 设备购置
A33: 大型修缮
A34: 其他资本性支出
A35: 对事业单位经常性补助 | B35: 50,474 | C35: 60,267 | D35: 60,267 | E35: =D35/C35*100 -> 100.00 | F35: 148.75
A36: 工资福利支出 | B36: 45,735 | C36: 56,346 | D36: 56,346 | E36: =D36/C36*100 -> 100.00 | F36: 148.60
A37: 商品和服务支出 | B37: 4,739 | C37: 3,921 | D37: 3,921 | E37: =D37/C37*100 -> 100.00 | F37: 150.92
A38: 其他对事业单位补助
A39: 对事业单位资本性补助 | B39: 390
A40: 资本性支出（一） | B40: 338
A41: 资本性支出（二） | B41: 52
A42: 对企业补助
A43: 对企业资本性支出
A44: 对个人和家庭的补助 | B44: 22,389 | C44: 9,968 | D44: 9,968 | E44: =D44/C44*100 -> 100.00 | F44: 117.00
A45: 社会福利和救助 | B45: 20,040 | C45: 9,797 | D45: 9,797 | E45: =D45/C45*100 -> 100.00 | F45: 119.67
A46: 助学金 | B46: 903 | C46: 1 | D46: 1 | E46: 100.00 | F46: 50.00
A47: 个人农业生产补贴
A48: 离退休费 | B48: 100 | C48: 132 | D48: 132 | E48: 100.00 | F48: 148.31
A49: 其他对个人和家庭补助 | B49: 1,346 | C49: 38 | D49: 38 | E49: 100.00 | F49: 15.70
A50: 对社会保障基金补助
A51: 债务利息及费用支出
A52: 其他支出
A53: 一般公共预算支出 | B53: 142,203 | C53: 109,292 | D53: 109,292 | E53: 100.00 | F53: 113.87

Sheet 6.盐边县一般公共预算税收收入返还和转移支付决算表
A1: 2023年度盐边县一般公共预算税收收入返还和转移支付决算表
B2: 单位：万元
A3: 科 目 | B3: 决 算 数
A4: 一般公共预算收入 | B4: 302,122
A5: 上级补助收入 | B5: 120,725
A6: 返还性收入 | B6: -679
A7: 所得税基数返还收入 | B7: -63
A8: 成品油税费改革税收返还收入 | B8: 1,124
A9: 增值税税收返还收入 | B9: 3,926
A10: 消费税税收返还收入 | B10: 0
A11: 增值税“五五分享”税收返还收入 | B11: -5,487
A12: 其他返还性收入 | B12: -179
A13: 一般性转移支付收入 | B13: 106,280
A14: 体制补助收入 | B14: 0
A15: 均衡性转移支付收入 | B15: 31,076
A16: 县级基本财力保障机制奖补资金收入 | B16: 5,345
A17: 结算补助收入 | B17: 1,443
A18: 资源枯竭型城市转移支付补助收入 | B18: 0
A19: 企业事业单位划转补助收入 | B19: 42
A20: 产粮(油)大县奖励资金收入 | B20: 0
A21: 重点生态功能区转移支付收入 | B21: 1,200
A22: 固定数额补助收入 | B22: 12,320
A23: 革命老区转移支付收入 | B23: 0
A24: 民族地区转移支付收入 | B24: 0
A25: 边境地区转移支付收入 | B25: 0
A26: 巩固脱贫攻坚成果衔接乡村振兴转移支付收入 | B26: 7,624
A27: 一般公共服务共同财政事权转移支付收入 | B27: 0
A28: 外交共同财政事权转移支付收入 | B28: 0
A29: 国防共同财政事权转移支付收入 | B29: 0
A30: 公共安全共同财政事权转移支付收入 | B30: 1,230
A31: 教育共同财政事权转移支付收入 | B31: 5,610
A32: 科学技术共同财政事权转移支付收入 | B32: 67
A33: 文化旅游体育与传媒共同财政事权转移支付收入 | B33: 239
A34: 社会保障和就业共同财政事权转移支付收入 | B34: 6,675
A35: 医疗卫生共同财政事权转移支付收入 | B35: 3,821
A36: 节能环保共同财政事权转移支付收入 | B36: 1,465
A37: 城乡社区共同财政事权转移支付收入 | B37: 0
A38: 农林水共同财政事权转移支付收入 | B38: 17,599
A39: 交通运输共同财政事权转移支付收入 | B39: 4,364
A40: 资源勘探工业信息等共同财政事权转移支付收入 | B40: 0
A41: 商业服务业等共同财政事权转移支付收入 | B41: 0
A42: 金融共同财政事权转移支付收入 | B42: 0
A43: 自然资源海洋气象等共同财政事权转移支付收入 | B43: 0
A44: 住房保障共同财政事权转移支付收入 | B44: 1,143
A45: 粮油物资储备共同财政事权转移支付收入 | B45: 0
A46: 灾害防治及应急管理共同财政事权转移支付收入 | B46: 113
A47: 其他共同财政事权转移支付收入 | B47: 0
A48: 增值税留抵退税转移支付收入 | B48: 3,395
A49: 其他退税减税降费转移支付收入 | B49: 531
A50: 补充县区财力转移支付收入 | B50: 0
A51: 其他一般性转移支付收入 | B51: 978
A52: 专项转移支付收入 | B52: 15,124
A53: 一般公共服务 | B53: 297
A54: 外交 | B54: 0
A55: 国防 | B55: 200
A56: 公共安全 | B56: 0
A57: 教育 | B57: 0
A58: 科学技术 | B58: 20
A59: 文化旅游体育与传媒 | B59: 75
A60: 社会保障和就业 | B60: 0
A61: 卫生健康 | B61: 332
A62: 节能环保 | B62: 2,065
A63: 城乡社区 | B63: 1,110
A64: 农林水 | B64: 6,545
A65: 交通运输 | B65: 0
A66: 资源勘探工业信息等 | B66: 0
A67: 商业服务业等 | B67: 334
A68: 金融 | B68: 1
A69: 自然资源海洋气象等 | B69: 0
A70: 住房保障 | B70: 3,218
A71: 粮油物资储备 | B71: 0
A72: 灾害防治及应急管理 | B72: 927
A73: 其他收入

Sheet 7.县本级一般公共预算收入决算表
A1: 2023年盐边县县本级一般公共预算收入决算表
E2: 单位：万元，%
A3: 科 目 | B3: 年初预算数 | C3: 调整预算数 | D3: 决 算 数 | E3: 为调整预算 | F3: 为上年决算
A4: 一、税收收入 | B4: 120,000 | C4: 127,000 | D4: 126,738 | E4: 99.79 | F4: 155.56
A5: 增值税 | B5: 60,000 | C5: 58,300 | D5: 58,242 | E5: 99.90 | F5: 165.13
A6: 消费税
A7: 企业所得税 | B7: 29,000 | C7: 29,300 | D7: 29,166 | E7: 99.54 | F7: 180.61
A8: 个人所得税 | B8: 2,100 | C8: 2,400 | D8: 2,406 | E8: 100.25 | F8: 115.62
A9: 资源税 | B9: 10,200 | C9: 8,600 | D9: 8,569 | E9: 99.64 | F9: 133.10
A10: 城市维护建设税 | B10: 6,000 | C10: 6,400 | D10: 6,352 | E10: 99.25 | F10: 169.25
A11: 房产税 | B11: 2,200 | C11: 2,800 | D11: 2,768 | E11: 98.86 | F11: 199.71
A12: 印花税 | B12: 1,100 | C12: 1,500 | D12: 1,480 | E12: 98.67 | F12: 160.17
A13: 城镇土地使用税 | B13: 3,600 | C13: 5,500 | D13: 5,534 | E13: 100.62 | F13: 159.90
A14: 土地增值税 | B14: 300 | C14: -230 | D14: -228 | E14: 99.13 | F14: -53.15
A15: 车船税 | B15: 650 | C15: 700 | D15: 707 | E15: 101.00 | F15: 112.22
A16: 耕地占用税 | B16: 1,000 | C16: 7,530 | D16: 7,530 | E16: 100.00 | F16: 111.57
A17: 契税 | B17: 1,500 | C17: 1,500 | D17: 1,509 | E17: 100.60 | F17: 81.92
A18: 烟叶税 | B18: 2,000 | C18: 2,400 | D18: 2,391 | E18: 99.63 | F18: 118.96
A19: 环境保护税 | B19: 350 | C19: 300 | D19: 300 | E19: 100.00 | F19: 86.21
A20: 其他税收收入 | D20: 12 | F20: 400.00
A21: 二、非税收入 | B21: 15,000 | C21: 175,000 | D21: 175,384 | E21: 100.22 | F21: 741.36
A22: 专项收入 | B22: 4,000 | C22: 5,800 | D22: 5,893 | E22: 101.60 | F22: 138.20
A23: 行政事业性收费收入 | B23: 600 | C23: 1,400 | D23: 1,469 | E23: 104.93 | F23: 57.81
A24: 罚没收入 | B24: 5,000 | C24: 6,600 | D24: 6,646 | E24: 100.70 | F24: 54.44
A25: 国有资本经营收入
A26: 国有资源（资产）有偿使用收入 | B26: 5,000 | C26: 160,900 | D26: 160,946 | E26: 100.03 | F26: 5,203.56
A27: 捐赠收入
A28: 政府住房基金收入 | B28: 100 | C28: 150 | D28: 162 | E28: 108.00 | F28: 98.78
A29: 其他收入 | B29: 300 | C29: 150 | D29: 268 | E29: 178.67 | F29: 19.31
A30: 地方一般公共预算收入 | B30: 135,000 | C30: 302,000 | D30: 302,122 | E30: 100.04 | F30: 287.38

Sheet 8.县本级一般公共预算支出决算表
A1: 2023年盐边县县本级一般公共预算支出决算表
E2: 单位：万元，%
A3: 科 目 | B3: 年初预算数 | C3: 调整预算数 | D3: 决 算 数 | E3: 为调整预算 | F3: 为上年决算
A4: 一般公共服务支出 | B4: 26,144 | C4: 32,050 | D4: =SUM(D5+D17+D26+D37+D48+D59+D70+D78+D87+D100+D109+D120+D132+D139+D147+D153+D160+D167+D174+D181+D188+D196+D202+D208+D215+D230) -> 32,044 | E4: =D4/C4*100 -> 99.98 | F4: 131.05
A5: 人大事务 | B5: 896 | C5: 1,168 | D5: =SUM(D6:D16) -> 1,171 | E5: =D5/C5*100 -> 100.26 | F5: 139.74
A6: 行政运行 | B6: 767 | C6: 781 | D6: 784 | E6: 100.38 | F6: 109.34
A7: 一般行政管理事务 | D7: 0
A8: 机关服务 | D8: 0
A9: 人大会议 | B9: 95 | C9: 83 | D9: 83 | E9: 100.00 | F9: 93.26
A10: 人大立法 | D10: 0
A11: 人大监督 | B11: 7 | D11: 0 | F11: 0.00
A12: 人大代表履职能力提升 | B12: 13 | C12: 31 | D12: 31 | E12: 100.00 | F12: 258.33
A13: 代表工作 | B13: 14 | C13: 31 | D13: 31 | E13: 100.00 | F13: 238.46
A14: 人大信访工作 | D14: 0
A15: 事业运行 | D15: 0
A16: 其他人大事务支出 | C16: 242 | D16: 242 | E16: 100.00
A17: 政协事务 | B17: 535 | C17: 891 | D17: =SUM(D18:D25) -> 891 | E17: 100.00 | F17: 178.56
A18: 行政运行 | B18: 410 | C18: 314 | D18: 314 | E18: 100.00 | F18: 81.98
A19: 一般行政管理事务 | B19: 26 | D19: 0 | F19: 0.00
A20: 机关服务 | D20: 0
A21: 政协会议 | C21: 25 | D21: 25 | E21: =D21/C21*100 -> 100.00
A22: 委员视察 | C22: 9 | D22: 9 | E22: 100.00
A23: 参政议政 | B23: 13 | C23: 6 | D23: 6 | E23: 100.00 | F23: 50.00
A24: 事业运行 | B24: 13 | C24: 14 | D24: 14 | E24: 100.00 | F24: 116.67
A25: 其他政协事务支出 | B25: 73 | C25: 523 | D25: 523 | E25: 100.00 | F25: 769.12
A26: 政府办公厅(室)及相关机构事务 | B26: 10,797 | C26: 11,539 | D26: =SUM(D27:D36) -> 11,530 | E26: 99.92 | F26: 113.99
A27: 行政运行 | B27: 6,873 | C27: 7,250 | D27: 7,241 | E27: 99.88 | F27: 112.30
A28: 一般行政管理事务 | B28: 851 | C28: 473 | D28: 473 | E28: 100.00 | F28: 59.50
A29: 机关服务 | B29: 213 | C29: 339 | D29: 339 | E29: 100.00 | F29: 170.35
A30: 专项服务 | D30: 0
A31: 专项业务及机关事务管理 | B31: 756 | C31: 285 | D31: 285 | E31: 100.00 | F31: 40.31
A32: 政务公开审批 | D32: 0
A33: 信访事务 | B33: 199 | C33: 206 | D33: 206 | E33: 100.00 | F33: 110.75
A34: 参事事务 | D34: 0
A35: 事业运行 | B35: 1,158 | C35: 1,631 | D35: 1,631 | E35: 100.00 | F35: 150.74
A36: 其他政府办公厅(室)及相关机构事务支出 | B36: 747 | C36: 1,355 | D36: 1,355 | E36: 100.00 | F36: 194.13
A37: 发展与改革事务 | B37: 575 | C37: 697 | D37: =SUM(D38:D47) -> 697 | E37: 100.00 | F37: 129.80
A38: 行政运行 | B38: 355 | C38: 347 | D38: 347 | E38: 100.00 | F38: 104.52
A39: 一般行政管理事务 | D39: 0
A40: 机关服务 | D40: 0
A41: 战略规划与实施 | D41: 0
A42: 日常经济运行调节 | D42: 0
A43: 社会事业发展规划 | D43: 0
A44: 经济体制改革研究 | D44: 0
A45: 物价管理 | C45: 2 | D45: 2 | E45: =D45/C45*100 -> 100.00
A46: 事业运行 | B46: 162 | C46: 192 | D46: 192 | E46: 100.00 | F46: 127.15
A47: 其他发展与改革事务支出 | B47: 58 | C47: 156 | D47: 156 | E47: 100.00 | F47: 288.89
A48: 统计信息事务 | B48: 515 | C48: 651 | D48: =SUM(D49:D58) -> 651 | E48: 100.00 | F48: 135.34
A49: 行政运行 | B49: 164 | C49: 159 | D49: 159 | E49: 100.00 | F49: 103.92
A50: 一般行政管理事务 | D50: 0
A51: 机关服务 | D51: 0
A52: 信息事务 | B52: 7 | C52: 1 | D52: 1 | E52: 100.00 | F52: 14.29
A53: 专项统计业务 | B53: 134 | C53: 133 | D53: 133 | E53: 100.00 | F53: 106.40
A54: 统计管理 | D54: 0
A55: 专项普查活动 | C55: 142 | D55: 142 | E55: 100.00
A56: 统计抽样调查 | B56: 73 | C56: 54 | D56: 54 | E56: 100.00 | F56: 79.41
A57: 事业运行 | B57: 137 | C57: 155 | D57: 155 | E57: 100.00 | F57: 121.09
A58: 其他统计信息事务支出 | C58: 7 | D58: 7 | E58: 100.00
A59: 财政事务 | B59: 1,473 | C59: 1,209 | D59: =SUM(D60:D69) -> 1,209 | E59: 100.00 | F59: 87.80
A60: 行政运行 | B60: 724 | C60: 616 | D60: 616 | E60: 100.00 | F60: 90.99
A61: 一般行政管理事务 | C61: 17 | D61: 17 | E61: 100.00
A62: 机关服务 | D62: 0
A63: 预算改革业务 | D63: 0
A64: 财政国库业务 | D64: 0
A65: 财政监察 | D65: 0
A66: 信息化建设 | B66: 167 | C66: 118 | D66: 118 | E66: =D66/C66*100 -> 100.00 | F66: 75.64
A67: 财政委托业务支出 | B67: 151 | C67: 47 | D67: 47 | E67: 100.00 | F67: 33.33
A68: 事业运行 | B68: 367 | C68: 353 | D68: 353 | E68: 100.00 | F68: 102.92
A69: 其他财政事务支出 | B69: 64 | C69: 58 | D69: 58 | E69: 100.00 | F69: 96.67
A70: 税收事务 | B70: 1,455 | C70: 1,457 | D70: =SUM(D71:D77) -> 1,457 | E70: 100.00 | F70: 107.13
A71: 行政运行 | B71: 577 | C71: 526 | D71: 526 | E71: 100.00 | F71: 97.59
A72: 一般行政管理事务 | D72: 0
A73: 机关服务 | D73: 0
A74: 信息化建设 | D74: 0
A75: 税收业务 | D75: 0
A76: 事业运行 | D76: 0
A77: 其他税收事务支出 | B77: 878 | C77: 931 | D77: 931 | E77: =D77/C77*100 -> 100.00 | F77: 113.40
A78: 审计事务 | B78: 371 | C78: 342 | D78: =SUM(D79:D86) -> 342 | E78: =D78/C78*100 -> 100.00 | F78: 100.59
A79: 行政运行 | B79: 297 | C79: 288 | D79: 288 | E79: =D79/C79*100 -> 100.00 | F79: 103.60
A80: 一般行政管理事务 | B80: 21 | D80: 0 | F80: 0.00
A81: 机关服务 | D81: 0
A82: 审计业务 | B82: 21 | C82: 44 | D82: 44 | E82: =D82/C82*100 -> 100.00 | F82: 220.00
A83: 审计管理 | D83: 0
A84: 信息化建设 | B84: 2 | C84: 3 | D84: 3 | E84: =D84/C84*100 -> 100.00 | F84: 150.00
A85: 事业运行 | D85: 0
A86: 其他审计事务支出 | B86: 30 | C86: 7 | D86: 7 | E86: =D86/C86*100 -> 100.00 | F86: 25.00
A87: 海关事务 | D87: =SUM(D88:D99) -> 0
A88: 行政运行 | D88: 0
A89: 一般行政管理事务 | D89: 0
A90: 机关服务 | D90: 0
A91: 缉私办案 | D91: 0
A92: 口岸管理 | D92: 0
A93: 信息化建设 | D93: 0
A94: 海关关务 | D94: 0
A95: 关税征管 | D95: 0
A96: 海关监管 | D96: 0
A97: 检验检疫 | D97: 0
A98: 事业运行 | D98: 0
A99: 其他海关事务支出 | D99: 0
A100: 纪检监察事务 | B100: 1,371 | C100: 1,334 | D100: =SUM(D101:D108) -> 1,334 | E100: =D100/C100*100 -> 100.00 | F100: 104.14
A101: 行政运行 | B101: 720 | C101: 665 | D101: 665 | E101: =D101/C101*100 -> 100.00 | F101: 98.81
A102: 一般行政管理事务 | B102: 14 | D102: 0 | F102: 0.00
A103: 机关服务 | D103: 0
A104: 大案要案查处 | B104: 200 | C104: 250 | D104: 250 | E104: =D104/C104*100 -> 100.00 | F104: 133.69
A105: 派驻派出机构 | D105: 0
A106: 巡视工作 | B106: 62 | C106: 98 | D106: 98 | E106: =D106/C106*100 -> 100.00 | F106: 168.97
A107: 事业运行 | B107: 104 | C107: 104 | D107: 104 | E107: =D107/C107*100 -> 100.00 | F107: 107.22
A108: 其他纪检监察事务支出 | B108: 271 | C108: 217 | D108: 217 | E108: =D108/C108*100 -> 100.00 | F108: 85.77
A109: 商贸事务 | B109: 985 | C109: 864 | D109: =SUM(D110:D119) -> 864 | E109: =D109/C109*100 -> 100.00 | F109: 93.91
A110: 行政运行 | B110: 106 | C110: 70 | D110: 70 | E110: =D110/C110*100 -> 100.00 | F110: 70.71
A111: 一般行政管理事务 | D111: 0
A112: 机关服务 | D112: 0
A113: 对外贸易管理 | D113: 0
A114: 国际经济合作 | D114: 0
A115: 外资管理 | D115: 0
A116: 国内贸易管理 | D116: 0
A117: 招商引资 | B117: 696 | C117: 618 | D117: 618 | E117: =D117/C117*100 -> 100.00 | F117: 95.08
A118: 事业运行 | B118: 183 | C118: 176 | D118: 176 | E118: =D118/C118*100 -> 100.00 | F118: 102.92
A119: 其他商贸事务支出 | D119: 0
A120: 知识产权事务 | D120: =SUM(D121:D131) -> 0
A121: 行政运行 | D121: 0
A122: 一般行政管理事务 | D122: 0
A123: 机关服务 | D123: 0
A124: 专利审批 | D124: 0
A125: 知识产权战略和规划 | D125: 0
A126: 国际合作与交流 | D126: 0
A127: 知识产权宏观管理 | D127: 0
A128: 商标管理 | D128: 0
A129: 原产地地理标志管理 | D129: 0
A130: 事业运行 | D130: 0
A131: 其他知识产权事务支出 | D131: 0
A132: 民族事务 | B132: 571 | C132: 679 | D132: =SUM(D133:D138) -> 679 | E132: =D132/C132*100 -> 100.00 | F132: 127.15
A133: 行政运行 | B133: 180 | C133: 98 | D133: 98 | E133: =D133/C133*100 -> 100.00 | F133: 58.33
A134: 一般行政管理事务 | C134: 10 | D134: 10 | E134: =D134/C134*100 -> 100.00
A135: 机关服务 | D135: 0
A136: 民族工作专项 | B136: 94 | C136: 52 | D136: 52 | E136: =D136/C136*100 -> 100.00 | F136: 59.09
A137: 事业运行 | B137: 21 | C137: 57 | D137: 57 | E137: =D137/C137*100 -> 100.00 | F137: 285.00
A138: 其他民族事务支出 | B138: 276 | C138: 462 | D138: 462 | E138: =D138/C138*100 -> 100.00 | F138: 179.07
A139: 港澳台事务 | D139: =SUM(D140:D146) -> 0
A140: 行政运行 | D140: 0
A141: 一般行政管理事务 | D141: 0
A142: 机关服务 | D142: 0
A143: 港澳事务 | D143: 0
A144: 台湾事务 | D144: 0
A145: 事业运行 | D145: 0
A146: 其他港澳台事务支出 | D146: 0
A147: 档案事务 | B147: 198 | C147: 183 | D147: =SUM(D148:D152) -> 183 | E147: =D147/C147*100 -> 100.00 | F147: 98.92
A148: 行政运行 | B148: 166 | C148: 150 | D148: 150 | E148: =D148/C148*100 -> 100.00 | F148: 96.77
A149: 一般行政管理事务 | D149: 0
A150: 机关服务 | D150: 0
A151: 档案馆 | B151: 32 | C151: 33 | D151: 33 | E151: =D151/C151*100 -> 100.00 | F151: 110.00
A152: 其他档案事务支出 | D152: 0
A153: 民主党派及工商联事务 | B153: 82 | C153: 100 | D153: =SUM(D154:D159) -> 100 | E153: =D153/C153*100 -> 100.00 | F153: 129.87
A154: 行政运行 | B154: 63 | C154: 52 | D154: 52 | E154: =D154/C154*100 -> 100.00 | F154: 88.14
A155: 一般行政管理事务 | D155: 0
A156: 机关服务 | D156: 0
A157: 参政议政 | D157: 0
A158: 事业运行 | D158: 0
A159: 其他民主党派及工商联事务支出 | B159: 19 | C159: 48 | D159: 48 | E159: =D159/C159*100 -> 100.00 | F159: 266.67
A160: 群众团体事务 | B160: 685 | C160: 1,356 | D160: =SUM(D161:D166) -> 1,356 | E160: 100.00 | F160: 211.88
A161: 行政运行 | B161: 189 | C161: 178 | D161: 178 | E161: 100.00 | F161: 100.56
A162: 一般行政管理事务 | B162: 9 | C162: 21 | D162: 21 | E162: 100.00 | F162: 262.50
A163: 机关服务 | D163: 0
A164: 工会事务 | D164: 0
A165: 事业运行 | B165: 139 | C165: 130 | D165: 130 | E165: 100.00 | F165: 100.00
A166: 其他群众团体事务支出 | B166: 348 | C166: 1,027 | D166: 1,027 | E166: 100.00 | F166: 316.00
A167: 党委办公厅(室)及相关机构事务 | B167: 1,569 | C167: 1,949 | D167: =SUM(D168:D173) -> 1,949 | E167: 100.00 | F167: 132.95
A168: 行政运行 | B168: 1,295 | C168: 1,366 | D168: 1,366 | E168: 100.00 | F168: 112.89
A169: 一般行政管理事务 | B169: 135 | C169: 116 | D169: 116 | E169: 100.00 | F169: 91.34
A170: 机关服务 | D170: 0
A171: 专项业务 | D171: 0
A172: 事业运行 | B172: 62 | C172: 132 | D172: 132 | E172: 100.00 | F172: 227.59
A173: 其他党委办公厅(室)及相关机构事务支出 | B173: 77 | C173: 335 | D173: 335 | E173: 100.00 | F173: 471.83
A174: 组织事务 | B174: 1,141 | C174: 1,377 | D174: =SUM(D175:D180) -> 1,377 | E174: 100.00 | F174: 129.05
A175: 行政运行 | B175: 721 | C175: 697 | D175: 697 | E175: 100.00 | F175: 103.41
A176: 一般行政管理事务 | C176: 46 | D176: 46 | E176: 100.00
A177: 机关服务 | D177: 0
A178: 公务员事务 | D178: 0
A179: 事业运行 | B179: 157 | C179: 184 | D179: 184 | E179: =D179/C179*100 -> 100.00 | F179: 125.17
A180: 其他组织事务支出 | B180: 263 | C180: 450 | D180: 450 | E180: 100.00 | F180: 182.93
A181: 宣传事务 | B181: 661 | C181: 735 | D181: =SUM(D182:D187) -> 735 | E181: 100.00 | F181: 118.93
A182: 行政运行 | B182: 185 | C182: 201 | D182: 201 | E182: 100.00 | F182: 116.18
A183: 一般行政管理事务 | C183: 33 | D183: 33 | E183: 100.00
A184: 机关服务 | D184: 0
A185: 宣传管理 | C185: 210 | D185: 210 | E185: 100.00
A186: 事业运行 | B186: 63 | C186: 98 | D186: 98 | E186: 100.00 | F186: 166.10
A187: 其他宣传事务支出 | B187: 413 | C187: 193 | D187: 193 | E187: 100.00 | F187: 50.00
A188: 统战事务 | B188: 134 | C188: 205 | D188: =SUM(D189:D195) -> 205 | E188: 100.00 | F188: 164.00
A189: 行政运行 | B189: 93 | C189: 126 | D189: 126 | E189: 100.00 | F189: 144.83
A190: 一般行政管理事务 | D190: 0
A191: 机关服务 | D191: 0
A192: 宗教事务 | C192: 20 | D192: 20 | E192: 100.00
A193: 华侨事务 | D193: 0
A194: 事业运行 | D194: 0
A195: 其他统战事务支出 | B195: 41 | C195: 59 | D195: 59 | E195: =D195/C195*100 -> 100.00 | F195: 155.26
A196: 对外联络事务 | D196: =SUM(D197:D201) -> 0
A197: 行政运行 | D197: 0
A198: 一般行政管理事务 | D198: 0
A199: 机关服务 | D199: 0
A200: 事业运行 | D200: 0
... 1116 more rows

Sheet 9.县本级一般公共预算收支决算平衡表
A1: 2023年盐边县县本级一般公共预算收支决算平衡表
A2: 单位：万元
A3: 科 目 | B3: 决 算 数 | C3: 科 目 | D3: 决 算 数
A4: 一般公共预算收入 | B4: 302,122 | C4: 一般公共预算支出 | D4: 263,821
A5: 上级补助收入 | B5: 120,725 | C5: 补助下级支出
A6: 返还性收入 | B6: -679 | C6: 返还性支出
A7: 所得税基数返还收入 | B7: -63 | C7: 所得税基数返还支出
A8: 成品油税费改革税收返还收入 | B8: 1,124 | C8: 成品油税费改革税收返还支出
A9: 增值税税收返还收入 | B9: 3,926 | C9: 增值税税收返还支出
A10: 消费税税收返还收入 | B10: 0 | C10: 消费税税收返还支出
A11: 增值税“五五分享”税收返还收入 | B11: -5,487 | C11: 增值税“五五分享”税收返还支出
A12: 其他返还性收入 | B12: -179 | C12: 其他返还性支出
A13: 一般性转移支付收入 | B13: 106,280 | C13: 一般性转移支付支出
A14: 体制补助收入 | B14: 0 | C14: 体制补助支出
A15: 均衡性转移支付收入 | B15: 31,076 | C15: 均衡性转移支付支出
A16: 县级基本财力保障机制奖补资金收入 | B16: 5,345 | C16: 县级基本财力保障机制奖补资金支出
A17: 结算补助收入 | B17: 1,443 | C17: 结算补助支出
A18: 资源枯竭型城市转移支付补助收入 | B18: 0 | C18: 资源枯竭型城市转移支付补助支出
A19: 企业事业单位划转补助收入 | B19: 42 | C19: 企业事业单位划转补助支出
A20: 产粮(油)大县奖励资金收入 | B20: 0 | C20: 产粮(油)大县奖励资金支出
A21: 重点生态功能区转移支付收入 | B21: 1,200 | C21: 重点生态功能区转移支付支出
A22: 固定数额补助收入 | B22: 12,320 | C22: 固定数额补助支出
A23: 革命老区转移支付收入 | B23: 0 | C23: 革命老区转移支付支出
A24: 民族地区转移支付收入 | B24: 0 | C24: 民族地区转移支付支出
A25: 边境地区转移支付收入 | B25: 0 | C25: 边境地区转移支付支出
A26: 巩固脱贫攻坚成果衔接乡村振兴转移支付收入 | B26: 7,624 | C26: 巩固脱贫攻坚成果衔接乡村振兴转移支付支出
A27: 一般公共服务共同财政事权转移支付收入 | B27: 0 | C27: 一般公共服务共同财政事权转移支付支出
A28: 外交共同财政事权转移支付收入 | B28: 0 | C28: 外交共同财政事权转移支付支出
A29: 国防共同财政事权转移支付收入 | B29: 0 | C29: 国防共同财政事权转移支付支出
A30: 公共安全共同财政事权转移支付收入 | B30: 1,230 | C30: 公共安全共同财政事权转移支付支出
A31: 教育共同财政事权转移支付收入 | B31: 5,610 | C31: 教育共同财政事权转移支付支出
A32: 科学技术共同财政事权转移支付收入 | B32: 67 | C32: 科学技术共同财政事权转移支付支出
A33: 文化旅游体育与传媒共同财政事权转移支付收入 | B33: 239 | C33: 文化旅游体育与传媒共同财政事权转移支付支出
A34: 社会保障和就业共同财政事权转移支付收入 | B34: 6,675 | C34: 社会保障和就业共同财政事权转移支付支出
A35: 医疗卫生共同财政事权转移支付收入 | B35: 3,821 | C35: 医疗卫生共同财政事权转移支付支出
A36: 节能环保共同财政事权转移支付收入 | B36: 1,465 | C36: 节能环保共同财政事权转移支付支出
A37: 城乡社区共同财政事权转移支付收入 | B37: 0 | C37: 城乡社区共同财政事权转移支付支出
A38: 农林水共同财政事权转移支付收入 | B38: 17,599 | C38: 农林水共同财政事权转移支付支出
A39: 交通运输共同财政事权转移支付收入 | B39: 4,364 | C39: 交通运输共同财政事权转移支付支出
A40: 资源勘探工业信息等共同财政事权转移支付收入 | B40: 0 | C40: 资源勘探工业信息等共同财政事权转移支付支出
A41: 商业服务业等共同财政事权转移支付收入 | B41: 0 | C41: 商业服务业等共同财政事权转移支付支出
A42: 金融共同财政事权转移支付收入 | B42: 0 | C42: 金融共同财政事权转移支付支出
A43: 自然资源海洋气象等共同财政事权转移支付收入 | B43: 0 | C43: 自然资源海洋气象等共同财政事权转移支付支出
A44: 住房保障共同财政事权转移支付收入 | B44: 1,143 | C44: 住房保障共同财政事权转移支付支出
A45: 粮油物资储备共同财政事权转移支付收入 | B45: 0 | C45: 粮油物资储备共同财政事权转移支付支出
A46: 灾害防治及应急管理共同财政事权转移支付收入 | B46: 113 | C46: 灾害防治及应急管理共同财政事权转移支付支出
A47: 其他共同财政事权转移支付收入 | B47: 0 | C47: 其他共同财政事权转移支付支出
A48: 增值税留抵退税转移支付收入 | B48: 3,395 | C48: 增值税留抵退税转移支付支出
A49: 其他退税减税降费转移支付收入 | B49: 531 | C49: 其他退税减税降费转移支付支出
A50: 补充县区财力转移支付收入 | B50: 0 | C50: 补充县区财力转移支付支出
A51: 其他一般性转移支付收入 | B51: 978 | C51: 其他一般性转移支付支出
A52: 专项转移支付收入 | C52: 专项转移支付支出
A53: 一般公共服务 | B53: 297 | C53: 一般公共服务
A54: 外交 | B54: 0 | C54: 外交
A55: 国防 | B55: 200 | C55: 国防
A56: 公共安全 | B56: 0 | C56: 公共安全
A57: 教育 | B57: 0 | C57: 教育
A58: 科学技术 | B58: 20 | C58: 科学技术
A59: 文化旅游体育与传媒 | B59: 75 | C59: 文化旅游体育与传媒
A60: 社会保障和就业 | B60: 0 | C60: 社会保障和就业
A61: 卫生健康 | B61: 332 | C61: 卫生健康
A62: 节能环保 | B62: 2,065 | C62: 节能环保
A63: 城乡社区 | B63: 1,110 | C63: 城乡社区
A64: 农林水 | B64: 6,545 | C64: 农林水
A65: 交通运输 | B65: 0 | C65: 交通运输
A66: 资源勘探工业信息等 | B66: 0 | C66: 资源勘探工业信息等
A67: 商业服务业等 | B67: 334 | C67: 商业服务业等
A68: 金融 | B68: 1 | C68: 金融
A69: 自然资源海洋气象等 | B69: 0 | C69: 自然资源海洋气象等
A70: 住房保障 | B70: 3,218 | C70: 住房保障
A71: 粮油物资储备 | B71: 0 | C71: 粮油物资储备
A72: 灾害防治及应急管理 | B72: 927 | C72: 灾害防治及应急管理
A73: 其他收入 | B73: 0 | C73: 其他支出
A74: 下级上解收入 | C74: 上解上级支出 | D74: 158,914
A75: 体制上解收入 | C75: 体制上解支出 | D75: 11
A76: 专项上解收入 | C76: 专项上解支出 | D76: 158,903
A77: 上年结余 | B77: 38,270
A78: 调入资金 | C78: 调出资金
A79: 从政府性基金预算调入
A80: 从国有资本经营预算调入
A81: 从其他资金调入
A82: 债务收入 | C82: 债务还本支出 | D82: 20,953
A83: 地方政府债务收入 | C83: 地方政府一般债务还本支出 | D83: 20,953
A84: 一般债务收入 | C84: 地方政府一般债券还本支出 | D84: 20,953
A85: 地方政府一般债券收入 | C85: 地方政府向外国政府借款还本支出
A86: 地方政府向外国政府借款收入 | C86: 地方政府向国际组织借款还本支出
A87: 地方政府向国际组织借款收入 | C87: 地方政府其他一般债务还本支出
A88: 地方政府其他一般债务收入
A89: 债务转贷收入 | B89: 24,453 | C89: 债务转贷支出
A90: 地方政府一般债务转贷收入 | B90: 24,453 | C90: 地方政府一般债券转贷支出
A91: 地方政府一般债券转贷收入 | B91: 24,453 | C91: 地方政府向外国政府借款转贷支出
A92: 地方政府向外国政府借款转贷收入 | C92: 地方政府向国际组织借款转贷支出
A93: 地方政府向国际组织借款转贷收入 | C93: 地方政府其他一般债务转贷支出
A94: 地方政府其他一般债务转贷收入
A95: 动用预算稳定调节基金 | B95: 12,392 | C95: 安排预算稳定调节基金 | D95: 19,341
A96: 接受其他地区援助收入 | C96: 援助其他地区支出
C97: 年终结余 | D97: 34,933
C98: 结转下年的支出 | D98: 34,933
A99: 收 入 总 计 | B99: 497,962 | C99: 支 出 总 计 | D99: 497,962

Sheet 10.县本级一般公共预算经济分类支出决算表
A1: 2023年盐边县县本级一般公共预算经济分类支出决算表
E2: 单位：万元，%
A3: 科 目 | B3: 年初预算数 | C3: 调整预算数 | D3: 决 算 数 | E3: 为调整预算 | F3: 为上年决算
A4: 机关工资福利支出 | B4: 55,708 | C4: 34,408 | D4: 34,408 | E4: =D4/C4*100 -> 100.00 | F4: 75.16
A5: 工资奖金津补贴 | B5: 36,638 | C5: 22,016 | D5: 22,016 | E5: =D5/C5*100 -> 100.00 | F5: 74.16
A6: 社会保障缴费 | B6: 10,568 | C6: 6,833 | D6: 6,833 | E6: 100.00 | F6: 79.65
A7: 住房公积金 | B7: 3,306 | C7: 2,588 | D7: 2,588 | E7: 100.00 | F7: 78.07
A8: 其他工资福利支出 | B8: 5,196 | C8: 2,971 | D8: 2,971 | E8: 100.00 | F8: 70.81
A9: 机关商品和服务支出 | B9: 45,097 | C9: 48,370 | D9: 39,283 | E9: 81.21 | F9: 83.52
A10: 办公经费 | B10: 5,142 | C10: 9,034 | D10: 8,974 | E10: 99.34 | F10: 174.80
A11: 会议费 | B11: 244 | C11: 1,149 | D11: 1,149 | E11: 100.00 | F11: 470.90
A12: 培训费 | B12: 91 | C12: 546 | D12: 495 | E12: 90.66 | F12: 543.96
A13: 专用材料购置费 | B13: 503 | C13: 2,224 | D13: 1,503 | E13: 67.58 | F13: 285.74
A14: 委托业务费 | B14: 5,873 | C14: 18,656 | D14: 17,652 | E14: 94.62 | F14: 256.01
A15: 公务接待费 | B15: 80 | C15: 148 | D15: 148 | E15: 100.00 | F15: 185.00
A16: 因公出国(境)费用 | B16: 0 | C16: 0 | D16: 0
A17: 公务用车运行维护费 | B17: 458 | C17: 544 | D17: 544 | E17: 100.00 | F17: 118.78
A18: 维修(护)费 | B18: 3,592 | C18: 1,602 | D18: 1,503 | E18: 93.82 | F18: 41.84
A19: 其他商品和服务支出 | B19: 29,114 | C19: 14,467 | D19: 7,315 | E19: 50.56 | F19: 24.37
A20: 机关资本性支出(一) | B20: 18,834 | C20: 65,825 | D20: 51,651 | E20: 78.47 | F20: 314.05
A21: 房屋建筑物购建 | B21: 618 | C21: 3,477 | D21: 3,205 | E21: 92.18 | F21: 518.61
A22: 基础设施建设 | B22: 17,058 | C22: 50,939 | D22: 39,979 | E22: 78.48 | F22: 301.43
A23: 公务用车购置 | B23: 413 | C23: 194 | D23: 194 | E23: 100.00 | F23: 46.97
A24: 土地征迁补偿和安置支出 | B24: 82 | C24: 2,564 | D24: 2,564 | E24: 100.00 | F24: 3126.83
A25: 设备购置 | B25: 645 | C25: 3,950 | D25: 3,073 | E25: 77.80 | F25: 476.43
A26: 大型修缮 | B26: 18 | C26: 2,410 | D26: 905 | E26: 37.55 | F26: 5027.78
A27: 其他资本性支出 | B27: 0 | C27: 2,291 | D27: 1,731 | E27: 75.56 | F27: 122.94
A28: 机关资本性支出(二) | B28: 3,462 | C28: 8,956 | D28: 4,409 | E28: 49.23 | F28: 971.15
A29: 房屋建筑物购建 | B29: 2 | C29: 730 | D29: 730 | E29: 100.00 | F29: 36500.00
A30: 基础设施建设 | B30: 3,239 | C30: 7,619 | D30: 3,112 | E30: 40.85 | F30: 1302.09
A31: 公务用车购置 | B31: 0 | C31: 0 | D31: 0
A32: 设备购置 | B32: 0 | C32: 550 | D32: 550 | E32: 100.00
A33: 大型修缮 | B33: 0 | C33: 10 | D33: 10 | E33: 100.00
A34: 其他资本性支出 | B34: 221 | C34: 47 | D34: 7 | E34: 14.89 | F34: 3.29
A35: 对事业单位经常性补助 | B35: 52,474 | C35: 70,145 | D35: 67,816 | E35: 96.68 | F35: 144.48
A36: 工资福利支出 | B36: 45,735 | C36: 56,664 | D36: 56,664 | E36: 100.00 | F36: 141.01
A37: 商品和服务支出 | B37: 6,739 | C37: 13,481 | D37: 11,152 | E37: =D37/C37*100 -> 82.72 | F37: 165.12
A38: 其他对事业单位补助 | B38: 0 | C38: 0 | D38: 0
A39: 对事业单位资本性补助 | B39: 990 | C39: 5,644 | D39: 5,222 | E39: 92.52 | F39: 526.94
A40: 资本性支出(一) | B40: 938 | C40: 5,644 | D40: 5,222 | E40: 92.52 | F40: 556.72
A41: 资本性支出(二) | B41: 52 | C41: 0 | D41: 0 | F41: 0.00
A42: 对企业补助 | B42: 2,147 | C42: 8,719 | D42: 6,498 | E42: 74.53 | F42: 302.65
A43: 费用补贴 | B43: 408 | C43: 5,653 | D43: 3,938 | E43: 69.66 | F43: 965.20
A44: 利息补贴 | B44: 0 | C44: 19 | D44: 19 | E44: 100.00
A45: 其他对企业补助 | B45: 1,739 | C45: 3,047 | D45: 2,541 | E45: 83.39 | F45: 146.12
A46: 对企业资本性支出 | B46: 0 | C46: 6,473 | D46: 6,473 | E46: 100.00
A47: 资本金注入(一) | B47: 0 | C47: 6,473 | D47: 6,473 | E47: 100.00
A48: 资本金注入(二) | B48: 0 | C48: 0 | D48: 0
A49: 政府投资基金股权投资 | B49: 0 | C49: 0 | D49: 0
A50: 其他对企业资本性支出 | B50: 0 | C50: 0 | D50: 0
A51: 对个人和家庭的补助 | B51: 39,889 | C51: 40,737 | D51: 39,337 | E51: 96.56 | F51: 138.58
A52: 社会福利和救助 | B52: 20,040 | C52: 27,611 | D52: 27,496 | E52: 99.58 | F52: 159.26
A53: 助学金 | B53: 903 | C53: 1,155 | D53: 1,155 | E53: 100.00 | F53: 127.91
A54: 个人农业生产补贴 | B54: 0 | C54: 7,169 | D54: 7,020 | E54: 97.92
A55: 离退休费 | B55: 100 | C55: 164 | D55: 164 | E55: 100.00 | F55: 167.35
A56: 其他对个人和家庭补助 | B56: 18,846 | C56: 4,638 | D56: 3,502 | E56: 75.51 | F56: 34.61
A57: 对社会保障基金补助 | B57: 888 | C57: 1,515 | D57: 1,515 | E57: 100.00 | F57: 175.75
A58: 对社会保险基金补助 | B58: 888 | C58: 1,515 | D58: 1,515 | E58: 100.00 | F58: 175.75
A59: 补充全国社会保障基金 | B59: 0 | C59: 0 | D59: 0
A60: 对机关事业单位职业年金的补助 | B60: 0 | C60: 0 | D60: 0
A61: 债务利息及费用支出 | B61: 5,100 | C61: 4,757 | D61: 4,757 | E61: 100.00 | F61: 100.32
A62: 国内债务付息 | B62: 5,054 | C62: 4,737 | D62: 4,737 | E62: 100.00 | F62: 100.25
A63: 国外债务付息 | B63: 0 | C63: 0 | D63: 0
A64: 国内债务发行费用 | B64: 46 | C64: 20 | D64: 20 | E64: 100.00 | F64: 117.65
A65: 国外债务发行费用 | B65: 0 | C65: 0 | D65: 0
A66: 预备费及预留 | B66: 2,500 | C66: 0
A67: 预备费 | B67: 2,500 | C67: 0 | D67: 0
A68: 预留 | B68: 0 | C68: 0 | D68: 0
A69: 其他支出 | B69: 5,010 | C69: 3,205 | D69: 2,452 | E69: =D69/C69*100 -> 76.51 | F69: 21.85
A70: 国家赔偿费用支出 | B70: 0 | C70: 0 | D70: 0
A71: 对民间非营利组织和群众性自治组织补贴 | B71: 0 | C71: 0
A72: 经常性赠与 | B72: 0 | C72: 0
A73: 资本性赠与 | B73: 0 | C73: 0
A74: 其他支出 | B74: 5,010 | C74: 3,205 | D74: 2,452 | E74: =D74/C74*100 -> 76.51 | F74: 21.85
A75: 一般公共预算支出 | B75: 232,099 | C75: 298,754 | D75: 263,821 | E75: =D75/C75*100 -> 88.31 | F75: 128.69

Sheet 11.县本级一般公共预算经济分类科目（基本）支出决算表
A1: 2023年盐边县县本级一般公共预算经济分类（基本）支出决算表
E2: 单位：万元，%
A3: 科 目 | B3: 年初预算数 | C3: 调整预算数 | D3: 决 算 数 | E3: 为调整预算 | F3: 为上年决算
A4: 机关工资福利支出 | B4: 55,708 | C4: 33,840 | D4: 33,840 | E4: =D4/C4*100 -> 100.00 | F4: 79.97
A5: 工资奖金津补贴 | B5: 36,638 | C5: 21,543 | D5: 21,543 | E5: 100.00 | F5: 78.55
A6: 社会保障缴费 | B6: 10,568 | C6: 6,833 | D6: 6,833 | E6: 100.00 | F6: 84.60
A7: 住房公积金 | B7: 3,306 | C7: 2,588 | D7: 2,588 | E7: 100.00 | F7: 87.43
A8: 其他工资福利支出 | B8: 5,196 | C8: 2,876 | D8: 2,876 | E8: 100.00 | F8: 74.62
A9: 机关商品和服务支出 | B9: 12,897 | C9: 5,217 | D9: 5,217 | E9: 100.00 | F9: 112.70
A10: 办公经费 | B10: 514 | C10: 3,782 | D10: 3,782 | E10: 100.00 | F10: 120.52
A11: 会议费 | B11: 244 | C11: 32 | D11: 32 | E11: 100.00 | F11: 76.19
A12: 培训费 | B12: 91 | C12: 21 | D12: 21 | E12: 100.00 | F12: 84.00
A13: 专用材料购置费 | B13: 403 | C13: 130 | D13: 130 | E13: 100.00 | F13: 481.48
A14: 委托业务费 | B14: 513 | C14: 503 | D14: 503 | E14: 100.00 | F14: 90.63
A15: 公务接待费 | B15: 80 | C15: 8 | D15: 8 | E15: 100.00 | F15: 72.73
A16: 因公出国（境）费用
A17: 公务用车运行维护费 | B17: 458 | C17: 424 | D17: 424 | E17: =D17/C17*100 -> 100.00 | F17: 294.44
A18: 维修（护）费 | B18: 3,592 | C18: 97 | D18: 97 | E18: 100.00 | F18: 70.80
A19: 其他商品和服务支出 | B19: 7,002 | C19: 220 | D19: 220 | E19: 100.00 | F19: 40.00
A20: 机关资本性支出（一） | B20: 345
A21: 房屋建筑物购建
A22: 基础设施建设
A23: 公务用车购置
A24: 土地征迁补偿和安置支出
A25: 设备购置 | B25: 345
A26: 大型修缮
A27: 其他资本性支出
A28: 机关资本性支出（二）
A29: 房屋建筑物购建
A30: 基础设施建设
A31: 公务用车购置
A32: 设备购置
A33: 大型修缮
A34: 其他资本性支出
A35: 对事业单位经常性补助 | B35: 50,474 | C35: 60,267 | D35: 60,267 | E35: =D35/C35*100 -> 100.00 | F35: 148.75
A36: 工资福利支出 | B36: 45,735 | C36: 56,346 | D36: 56,346 | E36: 100.00 | F36: 148.60
A37: 商品和服务支出 | B37: 4,739 | C37: 3,921 | D37: 3,921 | E37: 100.00 | F37: 150.92
A38: 其他对事业单位补助
A39: 对事业单位资本性补助 | B39: 390
A40: 资本性支出（一） | B40: 338
A41: 资本性支出（二） | B41: 52
A42: 对企业补助
A43: 对企业资本性支出
A44: 对个人和家庭的补助 | B44: 22,389 | C44: 9,968 | D44: 9,968 | E44: =D44/C44*100 -> 100.00 | F44: 117.00
A45: 社会福利和救助 | B45: 20,040 | C45: 9,797 | D45: 9,797 | E45: 100.00 | F45: 119.67
A46: 助学金 | B46: 903 | C46: 1 | D46: 1 | E46: 100.00 | F46: 50.00
A47: 个人农业生产补贴
A48: 离退休费 | B48: 100 | C48: 132 | D48: 132 | E48: =D48/C48*100 -> 100.00 | F48: 148.31
A49: 其他对个人和家庭补助 | B49: 1,346 | C49: 38 | D49: 38 | E49: 100.00 | F49: 15.70
A50: 对社会保障基金补助
A51: 债务利息及费用支出
A52: 其他支出
A53: 一般公共预算支出 | B53: 142,203 | C53: 109,292 | D53: 109,292 | E53: 100.00 | F53: 113.87

Sheet 12.政府性基金收入决算表
A1: 2023年盐边县政府性基金预算收入决算表
E2: 单位：万元，%
A3: 科 目 | B3: 年初预算数 | C3: 调整预算数 | D3: 决 算 数 | E3: 为调整预算 | F3: 为上年决算
A4: 国有土地收益基金收入 | C4: 1,177 | D4: 1,177 | E4: =D4/C4*100 -> 100.00 | F4: 79.63
A5: 农业土地开发资金收入 | C5: 29 | D5: 29 | E5: 100.00 | F5: 9.76
A6: 国有土地使用权出让收入 | B6: 60,000 | C6: 38,017 | D6: 39,809 | E6: 104.71 | F6: 84.63
A7: 城市基础设施配套费收入 | B7: 500 | C7: 49 | D7: 49 | E7: 100.00 | F7: 77.78
A8: 污水处理费收入 | B8: 500 | C8: 377 | D8: 377 | E8: 100.00 | F8: 79.37
A9: 专项债务对应项目专项收入 | C9: 4,222 | D9: 4,222 | E9: 100.00 | F9: 72.54
A10: 国有土地使用权出让金专项债务对应项目专项收入 | D10: 1,792 | F10: 43.05
A11: 其他政府性基金专项债务对应项目专项收入 | D11: 2,430 | F11: 146.65
A12: 政府性基金预算收入 | B12: 61,000 | C12: 43,871 | D12: 43,871 | E12: =D12/C12*100 -> 100.00 | F12: 79.52

Sheet 13.政府性基金支出决算表
A1: 2023年盐边县政府性基金预算支出决算表
E2: 单位：万元，%
A3: 科 目 | B3: 年初预算数 | C3: 调整预算数 | D3: 决 算 数 | E3: 为调整预算 | F3: 为上年决算
A4: 科学技术支出 | D4: 0
A5: 核电站乏燃料处理处置基金支出 | D5: 0
A6: 文化旅游体育与传媒支出 | D6: 0
A7: 国家电影事业发展专项资金安排的支出 | D7: 0
A8: 旅游发展基金支出 | D8: 0
A9: 国家电影事业发展专项资金对应专项债务收入安排的支出 | D9: 0
A10: 社会保障和就业支出 | B10: 1,396 | C10: 3,044 | D10: 3,044 | E10: =D10/C10*100 -> 100.00 | F10: 172.56
A11: 大中型水库移民后期扶持基金支出 | B11: 1,396 | C11: 3,044 | D11: 3,044 | E11: =D11/C11*100 -> 100.00 | F11: 172.56
A12: 移民补助 | B12: 1,396 | C12: 1,176 | D12: 1,176 | E12: =D12/C12*100 -> 100.00 | F12: 100.60
A13: 基础设施建设和经济发展 | C13: 1,868 | D13: 1,868 | E13: =D13/C13*100 -> 100.00 | F13: 313.95
A14: 其他大中型水库移民后期扶持基金支出 | D14: 0
A15: 小型水库移民扶助基金安排的支出 | D15: 0
A16: 小型水库移民扶助基金对应专项债务收入安排的支出 | D16: 0
A17: 节能环保支出 | D17: 0
A18: 可再生能源电价附加收入安排的支出 | D18: 0
A19: 废弃电器电子产品处理基金支出 | D19: 0
A20: 城乡社区支出 | B20: 33,960 | C20: 39,649 | D20: 39,649 | E20: =D20/C20*100 -> 100.00 | F20: 100.36
A21: 国有土地使用权出让收入安排的支出 | B21: 32,960 | C21: 38,017 | D21: 38,017 | E21: 100.00 | F21: 102.45
A22: 征地和拆迁补偿支出 | B22: 18,277 | C22: 8,431 | D22: 8,431 | E22: 100.00 | F22: 351.00
A23: 土地开发支出 | C23: 21 | D23: 21 | E23: 100.00
A24: 城市建设支出 | C24: 14 | D24: 14 | E24: 100.00 | F24: 3.11
A25: 农村基础设施建设支出 | B25: 4,500 | C25: 6,108 | D25: 6,108 | E25: 100.00 | F25: 144.43
A26: 补助被征地农民支出 | C26: 7,606 | D26: 7,606 | E26: 100.00 | F26: 107.19
A27: 土地出让业务支出 | D27: 0
A28: 廉租住房支出 | D28: 0
A29: 支付破产或改制企业职工安置费 | D29: 0
A30: 棚户区改造支出 | B30: 10,183 | D30: 0
A31: 公共租赁住房支出 | D31: 0
A32: 保障性住房租金补贴 | D32: 0
A33: 农业生产发展支出 | C33: 230 | D33: 230 | E33: =D33/C33*100 -> 100.00
A34: 农村社会事业支出 | D34: 0
A35: 农业农村生态环境支出 | D35: 0
A36: 其他国有土地使用权出让收入安排的支出 | C36: 15,607 | D36: 15,607 | E36: =D36/C36*100 -> 100.00 | F36: 148.10
A37: 国有土地收益基金安排的支出 | C37: 1,177 | D37: 1,177 | E37: =D37/C37*100 -> 100.00 | F37: 79.63
A38: 征地和拆迁补偿支出 | C38: 1,118 | D38: 1,118 | E38: =D38/C38*100 -> 100.00 | F38: 75.64
A39: 土地开发支出 | C39: 59 | D39: 59 | E39: =D39/C39*100 -> 100.00
A40: 其他国有土地收益基金支出 | D40: 0
A41: 农业土地开发资金安排的支出 | C41: 29 | D41: 29 | E41: =D41/C41*100 -> 100.00 | F41: 9.76
A42: 城市基础设施配套费安排的支出 | B42: 500 | C42: 49 | D42: 49 | E42: =D42/C42*100 -> 100.00 | F42: 34.75
A43: 城市公共设施 | B43: 100 | C43: 10 | D43: 0 | E43: =D43/C43*100 -> 0.00 | F43: 0.00
A44: 城市环境卫生 | B44: 300 | C44: 39 | D44: 0 | E44: =D44/C44*100 -> 0.00
A45: 公有房屋 | D45: 0
A46: 城市防洪 | D46: 0
A47: 其他城市基础设施配套费安排的支出 | B47: 100 | D47: 49
A48: 污水处理费安排的支出 | B48: 500 | C48: 377 | D48: 377 | E48: =D48/C48*100 -> 100.00 | F48: 78.22
A49: 污水处理设施建设和运营 | B49: 500 | C49: 377 | D49: 377 | E49: =D49/C49*100 -> 100.00 | F49: 78.22
A50: 代征手续费 | D50: 0
A51: 其他污水处理费安排的支出 | D51: 0
A52: 土地储备专项债券收入安排的支出 | D52: 0
A53: 棚户区改造专项债券收入安排的支出 | D53: 0
A54: 城市基础设施配套费对应专项债务收入安排的支出 | D54: 0
A55: 污水处理费对应专项债务收入安排的支出 | D55: 0
A56: 国有土地使用权出让收入对应专项债务收入安排的支出 | D56: 0
A57: 农林水支出 | B57: 5,141 | C57: 6,998 | D57: 6,998 | E57: =D57/C57*100 -> 100.00 | F57: 18,415.79
A58: 大中型水库库区基金安排的支出 | B58: 5,141 | C58: 6,998 | D58: 6,998 | E58: =D58/C58*100 -> 100.00 | F58: 18,415.79
A59: 基础设施建设和经济发展 | B59: 5,141 | C59: 6,998 | D59: 6,171 | E59: =D59/C59*100 -> 88.18 | F59: 16,239.47
A60: 解决移民遗留问题 | D60: 0
A61: 库区防护工程维护 | D61: 0
A62: 其他大中型水库库区基金支出 | D62: 827
A63: 三峡水库库区基金支出 | D63: 0
A64: 国家重大水利工程建设基金安排的支出 | D64: 0
A65: 国家重大水利工程建设基金对应专项债务收入安排的支出 | D65: 0
A66: 交通运输支出 | D66: 0
A67: 海南省高等级公路车辆通行附加费安排的支出 | D67: 0
A68: 车辆通行费安排的支出 | D68: 0
A69: 铁路建设基金支出 | D69: 0
A70: 船舶油污损害赔偿基金支出 | D70: 0
A71: 民航发展基金支出 | D71: 0
A72: 海南省高等级公路车辆通行附加费对应专项债务收入安排的支出 | D72: 0
A73: 政府收费公路专项债券收入安排的支出 | D73: 0
A74: 车辆通行费对应专项债务收入安排的支出 | D74: 0
A75: 资源勘探工业信息等支出 | D75: 0
A76: 农网还贷资金支出 | D76: 0
A77: 金融支出 | D77: 0
A78: 金融调控支出 | D78: 0
A79: 其他支出 | B79: 263 | C79: 57,584 | D79: 57,584 | E79: =D79/C79*100 -> 100.00 | F79: 149.89
A80: 其他政府性基金及对应专项债务收入安排的支出 | C80: 56,851 | D80: 56,851 | E80: =D80/C80*100 -> 100.00 | F80: 148.82
A81: 其他政府性基金安排的支出 | D81: 0
A82: 其他地方自行试点项目收益专项债券收入安排的支出 | C82: 56,851 | D82: 56,851 | E82: =D82/C82*100 -> 100.00 | F82: 148.82
A83: 其他政府性基金债务收入安排的支出 | D83: 0
A84: 彩票发行销售机构业务费安排的支出 | D84: 0
A85: 福利彩票发行机构的业务费支出 | D85: 0
A86: 体育彩票发行机构的业务费支出 | D86: 0
A87: 福利彩票销售机构的业务费支出 | D87: 0
A88: 体育彩票销售机构的业务费支出 | D88: 0
A89: 彩票兑奖周转金支出 | D89: 0
A90: 彩票发行销售风险基金支出 | D90: 0
A91: 彩票市场调控资金支出 | D91: 0
A92: 其他彩票发行销售机构业务费安排的支出 | D92: 0
A93: 抗疫特别国债财务基金支出 | D93: 0
A94: 彩票公益金安排的支出 | B94: 263 | C94: 696 | D94: 733 | E94: =D94/C94*100 -> 105.32 | F94: 336.24
A95: 用于补充全国社会保障基金的彩票公益金支出 | D95: 0
A96: 用于社会福利的彩票公益金支出 | B96: 216 | C96: 604 | D96: 604 | E96: =D96/C96*100 -> 100.00 | F96: 671.11
A97: 用于体育事业的彩票公益金支出 | B97: 47 | C97: 92 | D97: 92 | E97: =D97/C97*100 -> 100.00 | F97: 176.92
A98: 用于教育事业的彩票公益金支出 | D98: 0
A99: 用于红十字事业的彩票公益金支出 | D99: 0
A100: 用于残疾人事业的彩票公益金支出 | C100: 37 | D100: 37 | E100: =D100/C100*100 -> 100.00 | F100: 246.67
A101: 用于文化事业的彩票公益金支出 | D101: 0
A102: 用于巩固脱贫攻坚成果衔接乡村振兴的彩票公益金支出 | D102: 0
A103: 用于法律援助的彩票公益金支出 | D103: 0
A104: 用于城乡医疗救助的彩票公益金支出 | D104: 0 | F104: 0.00
A105: 用于其他社会公益事业的彩票公益金支出 | D105: 0
A106: 债务付息支出 | B106: 4,895 | C106: 4,154 | D106: 4,154 | E106: =D106/C106*100 -> 100.00 | F106: 118.58
A107: 地方政府专项债务付息支出 | B107: 4,895 | C107: 4,154 | D107: 4,154 | E107: =D107/C107*100 -> 100.00 | F107: 118.58
A108: 海南省高等级公路车辆通行附加费债务付息支出 | D108: 0
A109: 国家电影事业发展专项资金债务付息支出 | D109: 0
A110: 国有土地使用权出让金债务付息支出 | B110: 115 | C110: 115 | D110: 114 | E110: =D110/C110*100 -> 99.13 | F110: 55.88
A111: 农业土地开发资金债务付息支出 | D111: 0
A112: 大中型水库库区基金债务付息支出 | D112: 0
A113: 城市基础设施配套费债务付息支出 | D113: 0
A114: 小型水库移民扶助基金债务付息支出 | D114: 0
A115: 国家重大水利工程建设基金债务付息支出 | D115: 0
A116: 车辆通行费债务付息支出 | D116: 0
A117: 污水处理费债务付息支出 | D117: 0
A118: 土地储备专项债券付息支出 | B118: 1,661 | C118: 1,661 | D118: 1,660 | E118: =D118/C118*100 -> 99.94 | F118: 100.06
A119: 政府收费公路专项债券付息支出 | D119: 0
A120: 棚户区改造专项债券付息支出 | D120: 0
A121: 其他地方自行试点项目收益专项债券付息支出 | B121: 3,119 | C121: 2,378 | D121: 2,380 | E121: =D121/C121*100 -> 100.08 | F121: 145.12
A122: 其他政府性基金债务付息支出 | D122: 0
A123: 债务发行费用支出 | B123: 45 | C123: 68 | D123: 68 | E123: =D123/C123*100 -> 100.00 | F123: 400.00
A124: 地方政府专项债务发行费用支出 | B124: 45 | C124: 68 | D124: 68 | E124: =D124/C124*100 -> 100.00 | F124: 400.00
A125: 海南省高等级公路车辆通行附加费债务发行费用支出 | D125: 0
A126: 国家电影事业发展专项资金债务发行费用支出 | D126: 0
A127: 国有土地使用权出让金债务发行费用支出 | C127: 18 | D127: 18 | E127: =D127/C127*100 -> 100.00
A128: 农业土地开发资金债务发行费用支出 | D128: 0
A129: 大中型水库库区基金债务发行费用支出 | D129: 0
A130: 城市基础设施配套费债务发行费用支出 | D130: 0
A131: 小型水库移民扶助基金债务发行费用支出 | D131: 0
A132: 国家重大水利工程建设基金债务发行费用支出 | D132: 0
A133: 车辆通行费债务发行费用支出 | D133: 0
A134: 污水处理费债务发行费用支出 | D134: 0
A135: 土地储备专项债券发行费用支出 | D135: 0
A136: 政府收费公路专项债券发行费用支出 | D136: 0
A137: 棚户区改造专项债券发行费用支出 | D137: 0
A138: 其他地方自行试点项目收益专项债券发行费用支出 | B138: 45 | C138: 50 | D138: 50 | E138: 100.00 | F138: 294.12
A139: 其他政府性基金债务发行费用支出 | D139: 0
A140: 抗疫特别国债安排的支出 | D140: 0
A141: 基础设施建设 | D141: 0
A142: 抗疫相关支出 | D142: 0
A143: 政府性基金预算支出 | B143: 45,700 | C143: 111,479 | D143: 111,497 | E143: =D143/C143*100 -> 100.02 | F143: 133.94

Sheet 14.政府性基金收支预算平衡表
A1: 2023年盐边县政府性基金预算收支决算平衡表
A2: 单位：万元
A3: 项目 | B3: 决 算 数 | C3: 项目 | D3: 决 算 数
A4: 政府性基金预算收入 | B4: 43,871 | C4: 政府性基金预算支出 | D4: 111,497
A5: 政府性基金预算上级补助收入 | B5: 8,168 | C5: 政府性基金预算补助下级支出 | D5: 0
A6: 政府性基金转移支付收入 | B6: 8,168 | C6: 政府性基金转移支付支出 | D6: 0
A7: 科学技术 | B7: 0 | C7: 科学技术 | D7: 0
A8: 文化旅游体育与传媒 | B8: 0 | C8: 文化旅游体育与传媒 | D8: 0
A9: 社会保障和就业 | B9: 2,125 | C9: 社会保障和就业 | D9: 0
A10: 节能环保 | B10: 0 | C10: 节能环保 | D10: 0
A11: 城乡社区 | B11: 0 | C11: 城乡社区 | D11: 0
A12: 农林水 | B12: 5,326 | C12: 农林水 | D12: 0
A13: 交通运输 | B13: 0 | C13: 交通运输 | D13: 0
A14: 资源勘探工业信息等 | B14: 0 | C14: 资源勘探工业信息等 | D14: 0
A15: 其他收入 | B15: 717 | C15: 其他支出 | D15: 0
A16: 政府性基金预算下级上解收入 | B16: 0 | C16: 政府性基金预算上解上级支出 | D16: 0
A17: 待偿债再融资专项债券上年结余 | B17: 0
A18: 政府性基金预算上年结余收入 | B18: 6,800
A19: 政府性基金预算调入资金 | B19: 0 | C19: 政府性基金预算调出资金 | D19: 0
A20: 中央单位特殊上缴利润专项收入
A21: 其他调入政府性基金预算资金 | B21: 0
A22: 一般公共预算调入 | B22: 0
A23: 其他调入资金 | B23: 0
A24: 债务收入 | B24: 0 | C24: 债务还本支出 | D24: 22,100
A25: 地方政府债务收入 | B25: 0 | C25: 地方政府专项债务还本支出 | D25: 22,100
A26: 专项债务收入 | B26: 0 | C26: 抗疫特别国债还本支出
A27: 债务转贷收入 | B27: 83,800 | C27: 债务转贷支出 | D27: 0
A28: 地方政府专项债务转贷收入 | B28: 83,800
A29: 政府性基金预算省补助计划单列市收入 | B29: 0 | C29: 政府性基金预算省补助计划单列市支出 | D29: 0
A30: 政府性基金预算计划单列市上解省收入 | B30: 0 | C30: 政府性基金预算计划单列市上解省支出 | D30: 0
C31: 待偿债再融资专项债券结余 | D31: 0
C32: 政府性基金预算年终结余 | D32: 9,042
A33: 收 入 总 计 | B33: 142,639 | C33: 支 出 总 计 | D33: 142,639

Sheet 15.县本级政府性基金收入决算表
A1: 2023年盐边县本级政府性基金预算收入决算表
E2: 单位：万元，%
A3: 科 目 | B3: 年初预算数 | C3: 调整预算数 | D3: 决 算 数 | E3: 为调整预算 | F3: 为上年决算
A4: 国有土地收益基金收入 | C4: 1,177 | D4: 1,177 | E4: =D4/C4*100 -> 100.00 | F4: 79.63
A5: 农业土地开发资金收入 | C5: 29 | D5: 29 | E5: 100.00 | F5: 9.76
A6: 国有土地使用权出让收入 | B6: 60,000 | C6: 38,017 | D6: 39,809 | E6: 104.71 | F6: 84.63
A7: 城市基础设施配套费收入 | B7: 500 | C7: 49 | D7: 49 | E7: 100.00 | F7: 77.78
A8: 污水处理费收入 | B8: 500 | C8: 377 | D8: 377 | E8: 100.00 | F8: 79.37
A9: 专项债务对应项目专项收入 | C9: 4,222 | D9: 4,222 | E9: 100.00 | F9: 72.54
A10: 国有土地使用权出让金专项债务对应项目专项收入 | D10: 1,792 | F10: 43.05
A11: 其他政府性基金专项债务对应项目专项收入 | D11: 2,430 | F11: 146.65
A12: 政府性基金预算收入 | B12: 61,000 | C12: 43,871 | D12: 43,871 | E12: =D12/C12*100 -> 100.00 | F12: 79.52

Sheet 16.县本级政府性基金支出决算表
A1: 2023年盐边县本级政府性基金预算支出决算表
E2: 单位：万元，%
A3: 科 目 | B3: 年初预算数 | C3: 调整预算数 | D3: 决 算 数 | E3: 为调整预算 | F3: 为上年决算
A4: 科学技术支出 | D4: 0
A5: 核电站乏燃料处理处置基金支出 | D5: 0
A6: 文化旅游体育与传媒支出 | D6: 0
A7: 国家电影事业发展专项资金安排的支出 | D7: 0
A8: 旅游发展基金支出 | D8: 0
A9: 国家电影事业发展专项资金对应专项债务收入安排的支出 | D9: 0
A10: 社会保障和就业支出 | B10: 1,396 | C10: 3,044 | D10: 3,044 | E10: 100.00 | F10: 172.56
A11: 大中型水库移民后期扶持基金支出 | B11: 1,396 | C11: 3,044 | D11: 3,044 | E11: 100.00 | F11: 172.56
A12: 移民补助 | B12: 1,396 | C12: 1,176 | D12: 1,176 | E12: 100.00 | F12: 100.60
A13: 基础设施建设和经济发展 | C13: 1,868 | D13: 1,868 | E13: 100.00 | F13: 313.95
A14: 其他大中型水库移民后期扶持基金支出 | D14: 0
A15: 小型水库移民扶助基金安排的支出 | D15: 0
A16: 小型水库移民扶助基金对应专项债务收入安排的支出 | D16: 0
A17: 节能环保支出 | D17: 0
A18: 可再生能源电价附加收入安排的支出 | D18: 0
A19: 废弃电器电子产品处理基金支出 | D19: 0
A20: 城乡社区支出 | B20: 33,960 | C20: 39,649 | D20: 39,649 | E20: 100.00 | F20: 100.36
A21: 国有土地使用权出让收入安排的支出 | B21: 32,960 | C21: 38,017 | D21: 38,017 | E21: 100.00 | F21: 102.45
A22: 征地和拆迁补偿支出 | B22: 18,277 | C22: 8,431 | D22: 8,431 | E22: 100.00 | F22: 351.00
A23: 土地开发支出 | C23: 21 | D23: 21 | E23: 100.00
A24: 城市建设支出 | C24: 14 | D24: 14 | E24: 100.00 | F24: 3.11
A25: 农村基础设施建设支出 | B25: 4,500 | C25: 6,108 | D25: 6,108 | E25: 100.00 | F25: 144.43
A26: 补助被征地农民支出 | C26: 7,606 | D26: 7,606 | E26: 100.00 | F26: 107.19
A27: 土地出让业务支出 | D27: 0
A28: 廉租住房支出 | D28: 0
A29: 支付破产或改制企业职工安置费 | D29: 0
A30: 棚户区改造支出 | B30: 10,183 | D30: 0
A31: 公共租赁住房支出 | D31: 0
A32: 保障性住房租金补贴 | D32: 0
A33: 农业生产发展支出 | C33: 230 | D33: 230 | E33: 100.00
A34: 农村社会事业支出 | D34: 0
A35: 农业农村生态环境支出 | D35: 0
A36: 其他国有土地使用权出让收入安排的支出 | C36: 15,607 | D36: 15,607 | E36: 100.00 | F36: 148.10
A37: 国有土地收益基金安排的支出 | C37: 1,177 | D37: 1,177 | E37: 100.00 | F37: 79.63
A38: 征地和拆迁补偿支出 | C38: 1,118 | D38: 1,118 | E38: 100.00 | F38: 75.64
A39: 土地开发支出 | C39: 59 | D39: 59 | E39: 100.00
A40: 其他国有土地收益基金支出 | D40: 0
A41: 农业土地开发资金安排的支出 | C41: 29 | D41: 29 | E41: 100.00 | F41: 9.76
A42: 城市基础设施配套费安排的支出 | B42: 500 | C42: 49 | D42: 49 | E42: 100.00 | F42: 34.75
A43: 城市公共设施 | B43: 100 | C43: 10 | D43: 0 | E43: 0.00 | F43: 0.00
A44: 城市环境卫生 | B44: 300 | C44: 39 | D44: 0 | E44: 0.00
A45: 公有房屋 | D45: 0
A46: 城市防洪 | D46: 0
A47: 其他城市基础设施配套费安排的支出 | B47: 100 | D47: 49
A48: 污水处理费安排的支出 | B48: 500 | C48: 377 | D48: 377 | E48: 100.00 | F48: 78.22
A49: 污水处理设施建设和运营 | B49: 500 | C49: 377 | D49: 377 | E49: 100.00 | F49: 78.22
A50: 代征手续费 | D50: 0
A51: 其他污水处理费安排的支出 | D51: 0
A52: 土地储备专项债券收入安排的支出 | D52: 0
A53: 棚户区改造专项债券收入安排的支出 | D53: 0
A54: 城市基础设施配套费对应专项债务收入安排的支出 | D54: 0
A55: 污水处理费对应专项债务收入安排的支出 | D55: 0
A56: 国有土地使用权出让收入对应专项债务收入安排的支出 | D56: 0
A57: 农林水支出 | B57: 5,141 | C57: 6,998 | D57: 6,998 | E57: 100.00 | F57: 18,415.79
A58: 大中型水库库区基金安排的支出 | B58: 5,141 | C58: 6,998 | D58: 6,998 | E58: 100.00 | F58: 18,415.79
A59: 基础设施建设和经济发展 | B59: 5,141 | C59: 6,998 | D59: 6,171 | E59: 88.18 | F59: 16,239.47
A60: 解决移民遗留问题 | D60: 0
A61: 库区防护工程维护 | D61: 0
A62: 其他大中型水库库区基金支出 | D62: 827
A63: 三峡水库库区基金支出 | D63: 0
A64: 国家重大水利工程建设基金安排的支出 | D64: 0
A65: 国家重大水利工程建设基金对应专项债务收入安排的支出 | D65: 0
A66: 交通运输支出 | D66: 0
A67: 海南省高等级公路车辆通行附加费安排的支出 | D67: 0
A68: 车辆通行费安排的支出 | D68: 0
A69: 铁路建设基金支出 | D69: 0
A70: 船舶油污损害赔偿基金支出 | D70: 0
A71: 民航发展基金支出 | D71: 0
A72: 海南省高等级公路车辆通行附加费对应专项债务收入安排的支出 | D72: 0
A73: 政府收费公路专项债券收入安排的支出 | D73: 0
A74: 车辆通行费对应专项债务收入安排的支出 | D74: 0
A75: 资源勘探工业信息等支出 | D75: 0
A76: 农网还贷资金支出 | D76: 0
A77: 金融支出 | D77: 0
A78: 金融调控支出 | D78: 0
A79: 其他支出 | B79: 263 | C79: 57,584 | D79: 57,584 | E79: 100.00 | F79: 149.89
A80: 其他政府性基金及对应专项债务收入安排的支出 | C80: 56,851 | D80: 56,851 | E80: 100.00 | F80: 148.82
A81: 其他政府性基金安排的支出 | D81: 0
A82: 其他地方自行试点项目收益专项债券收入安排的支出 | C82: 56,851 | D82: 56,851 | E82: 100.00 | F82: 148.82
A83: 其他政府性基金债务收入安排的支出 | D83: 0
A84: 彩票发行销售机构业务费安排的支出 | D84: 0
A85: 福利彩票发行机构的业务费支出 | D85: 0
A86: 体育彩票发行机构的业务费支出 | D86: 0
A87: 福利彩票销售机构的业务费支出 | D87: 0
A88: 体育彩票销售机构的业务费支出 | D88: 0
A89: 彩票兑奖周转金支出 | D89: 0
A90: 彩票发行销售风险基金支出 | D90: 0
A91: 彩票市场调控资金支出 | D91: 0
A92: 其他彩票发行销售机构业务费安排的支出 | D92: 0
A93: 抗疫特别国债财务基金支出 | D93: 0
A94: 彩票公益金安排的支出 | B94: 263 | C94: 696 | D94: 733 | E94: 105.32 | F94: 336.24
A95: 用于补充全国社会保障基金的彩票公益金支出 | D95: 0
A96: 用于社会福利的彩票公益金支出 | B96: 216 | C96: 604 | D96: 604 | E96: 100.00 | F96: 671.11
A97: 用于体育事业的彩票公益金支出 | B97: 47 | C97: 92 | D97: 92 | E97: 100.00 | F97: 176.92
A98: 用于教育事业的彩票公益金支出 | D98: 0
A99: 用于红十字事业的彩票公益金支出 | D99: 0
A100: 用于残疾人事业的彩票公益金支出 | C100: 37 | D100: 37 | E100: 100.00 | F100: 246.67
A101: 用于文化事业的彩票公益金支出 | D101: 0
A102: 用于巩固脱贫攻坚成果衔接乡村振兴的彩票公益金支出 | D102: 0
A103: 用于法律援助的彩票公益金支出 | D103: 0
A104: 用于城乡医疗救助的彩票公益金支出 | D104: 0 | F104: 0.00
A105: 用于其他社会公益事业的彩票公益金支出 | D105: 0
A106: 债务付息支出 | B106: 4,895 | C106: 4,154 | D106: 4,154 | E106: 100.00 | F106: 118.58
A107: 地方政府专项债务付息支出 | B107: 4,895 | C107: 4,154 | D107: 4,154 | E107: 100.00 | F107: 118.58
A108: 海南省高等级公路车辆通行附加费债务付息支出 | D108: 0
A109: 国家电影事业发展专项资金债务付息支出 | D109: 0
A110: 国有土地使用权出让金债务付息支出 | B110: 115 | C110: 115 | D110: 114 | E110: 99.13 | F110: 55.88
A111: 农业土地开发资金债务付息支出 | D111: 0
A112: 大中型水库库区基金债务付息支出 | D112: 0
A113: 城市基础设施配套费债务付息支出 | D113: 0
A114: 小型水库移民扶助基金债务付息支出 | D114: 0
A115: 国家重大水利工程建设基金债务付息支出 | D115: 0
A116: 车辆通行费债务付息支出 | D116: 0
A117: 污水处理费债务付息支出 | D117: 0
A118: 土地储备专项债券付息支出 | B118: 1,661 | C118: 1,661 | D118: 1,660 | E118: 99.94 | F118: 100.06
A119: 政府收费公路专项债券付息支出 | D119: 0
A120: 棚户区改造专项债券付息支出 | D120: 0
A121: 其他地方自行试点项目收益专项债券付息支出 | B121: 3,119 | C121: 2,378 | D121: 2,380 | E121: 100.08 | F121: 145.12
A122: 其他政府性基金债务付息支出 | D122: 0
A123: 债务发行费用支出 | B123: 45 | C123: 68 | D123: 68 | E123: 100.00 | F123: 400.00
A124: 地方政府专项债务发行费用支出 | B124: 45 | C124: 68 | D124: 68 | E124: 100.00 | F124: 400.00
A125: 海南省高等级公路车辆通行附加费债务发行费用支出 | D125: 0
A126: 国家电影事业发展专项资金债务发行费用支出 | D126: 0
A127: 国有土地使用权出让金债务发行费用支出 | C127: 18 | D127: 18 | E127: 100.00
A128: 农业土地开发资金债务发行费用支出 | D128: 0
A129: 大中型水库库区基金债务发行费用支出 | D129: 0
A130: 城市基础设施配套费债务发行费用支出 | D130: 0
A131: 小型水库移民扶助基金债务发行费用支出 | D131: 0
A132: 国家重大水利工程建设基金债务发行费用支出 | D132: 0
A133: 车辆通行费债务发行费用支出 | D133: 0
A134: 污水处理费债务发行费用支出 | D134: 0
A135: 土地储备专项债券发行费用支出 | D135: 0
A136: 政府收费公路专项债券发行费用支出 | D136: 0
A137: 棚户区改造专项债券发行费用支出 | D137: 0
A138: 其他地方自行试点项目收益专项债券发行费用支出 | B138: 45 | C138: 50 | D138: 50 | E138: 100.00 | F138: 294.12
A139: 其他政府性基金债务发行费用支出 | D139: 0
A140: 抗疫特别国债安排的支出 | D140: 0
A141: 基础设施建设 | D141: 0
A142: 抗疫相关支出 | D142: 0
A143: 政府性基金预算支出 | B143: 45,700 | C143: 111,479 | D143: 111,497 | E143: 100.02 | F143: 133.94

Sheet 17.县本级政府性基金收支预算平衡表
A1: 2023年盐边县本级政府性基金预算收支决算平衡表
A2: 单位：万元
A3: 项目 | B3: 决 算 数 | C3: 项目 | D3: 决 算 数
A4: 政府性基金预算收入 | B4: 43,871 | C4: 政府性基金预算支出 | D4: 111,497
A5: 政府性基金预算上级补助收入 | B5: 8,168 | C5: 政府性基金预算补助下级支出 | D5: 0
A6: 政府性基金转移支付收入 | B6: 8,168 | C6: 政府性基金转移支付支出 | D6: 0
A7: 科学技术 | B7: 0 | C7: 科学技术 | D7: 0
A8: 文化旅游体育与传媒 | B8: 0 | C8: 文化旅游体育与传媒 | D8: 0
A9: 社会保障和就业 | B9: 2,125 | C9: 社会保障和就业 | D9: 0
A10: 节能环保 | B10: 0 | C10: 节能环保 | D10: 0
A11: 城乡社区 | B11: 0 | C11: 城乡社区 | D11: 0
A12: 农林水 | B12: 5,326 | C12: 农林水 | D12: 0
A13: 交通运输 | B13: 0 | C13: 交通运输 | D13: 0
A14: 资源勘探工业信息等 | B14: 0 | C14: 资源勘探工业信息等 | D14: 0
A15: 其他收入 | B15: 717 | C15: 其他支出 | D15: 0
A16: 政府性基金预算下级上解收入 | B16: 0 | C16: 政府性基金预算上解上级支出 | D16: 0
A17: 待偿债再融资专项债券上年结余 | B17: 0
A18: 政府性基金预算上年结余收入 | B18: 6,800
A19: 政府性基金预算调入资金 | B19: 0 | C19: 政府性基金预算调出资金 | D19: 0
A20: 中央单位特殊上缴利润专项收入
A21: 其他调入政府性基金预算资金 | B21: 0
A22: 一般公共预算调入 | B22: 0
A23: 其他调入资金 | B23: 0
A24: 债务收入 | B24: 0 | C24: 债务还本支出 | D24: 22,100
A25: 地方政府债务收入 | B25: 0 | C25: 地方政府专项债务还本支出 | D25: 22,100
A26: 专项债务收入 | B26: 0 | C26: 抗疫特别国债还本支出
A27: 债务转贷收入 | B27: 83,800 | C27: 债务转贷支出 | D27: 0
A28: 地方政府专项债务转贷收入 | B28: 83,800
A29: 政府性基金预算省补助计划单列市收入 | B29: 0 | C29: 政府性基金预算省补助计划单列市支出 | D29: 0
A30: 政府性基金预算计划单列市上解省收入 | B30: 0 | C30: 政府性基金预算计划单列市上解省支出 | D30: 0
C31: 待偿债再融资专项债券结余 | D31: 0
C32: 政府性基金预算年终结余 | D32: 9,042
A33: 收 入 总 计 | B33: 142,639 | C33: 支 出 总 计 | D33: 142,639

Sheet 18.政府性基金转移支付补助决算表
A1: 2023年省对县政府性基金预算转移支付补助决算表
B2: 单位：万元
A3: 科 目 | B3: 决 算 数
A4: 政府性基金上级补助收入 | B4: 8,168
A5: 政府性基金转移支付收入 | B5: 8,168
A6: 国家电影事业发展专项资金相关收入
A7: 大中型水库移民后期扶持基金收入 | B7: 2,125
A8: 大中型水库库区基金相关收入 | B8: 5,326
A9: 彩票公益金收入 | B9: 717

Sheet 19.县本级预算内基本建设支出决算表
A1: 2023年盐边县预算内基本建设支出决算表
B2: 单位：万元
A3: 科 目 | B3: 决 算 数
A4: 一、一般公共服务支出 | B4: 272
A5: 二、外交支出
A6: 三、国防支出
A7: 四、公共安全支出
A8: 五、教育支出
A9: 六、科学技术支出
A10: 七、文化旅游体育与传媒支出
A11: 八、社会保障和就业支出
A12: 九、卫生健康支出
A13: 十、节能环保支出
A14: 十一、城乡社区支出
A15: 十二、农林水支出 | B15: 7
A16: 十三、交通运输支出
A17: 十四、资源勘探工业信息等支出
A18: 十五、商业服务业等支出
A19: 十六、金融支出
A20: 十七、自然资源海洋气象等支出
A21: 十八、住房保障支出
A22: 十九、粮油物资储备支出
A23: 二十、灾害防治及应急管理支出
A24: 二十二、其他支出
A25: 合计 | B25: =SUM(B4:B24) -> 279

Sheet 20.国有资本经营预算收入决算表
A1: 2023年盐边县国有资本经营预算收入决算表
E2: 单位：万元，%
A3: 科 目 | B3: 年初预算数 | C3: 调整预算数 | D3: 决 算 数 | E3: 为调整预算 | F3: 为上年决算
A4: 利润收入 | B4: 800 | C4: 800 | D4: 800 | E4: =D4/C4*100 -> 100.00 | F4: 160.00
A5: 投资服务企业利润收入 | B5: 800 | C5: 800 | D5: 800 | E5: =D5/C5*100 -> 100.00 | F5: 160.00
A6: 金融企业利润收入
A7: 其他国有资本经营预算企业利润收入
A8: 股利、股息收入
A9: 国有控股公司股利、股息收入
A10: 国有参股公司股利、股息收入
A11: 金融企业股利、股息收入
A12: 其他国有资本经营预算企业股利、股息收入
A13: 产权转让收入
A14: 清算收入
A15: 其他国有资本经营预算收入
A16: 合计 | B16: 800 | C16: 800 | D16: 800 | E16: =D16/C16*100 -> 100.00 | F16: 160.00

Sheet 21.国有资本经营预算支出决算表
A1: 2023年盐边县国有资本经营预算支出决算表
E2: 单位：万元，%
A3: 科 目 | B3: 年初预算数 | C3: 调整预算数 | D3: 决 算 数 | E3: 为调整预算 | F3: 为上年决算
A4: 社会保障和就业支出
A5: 国有资本经营预算支出 | C5: 822 | D5: 822 | E5: =D5/C5*100 -> 100.00
A6: 解决历史遗留问题及改革成本支出 | C6: 22 | D6: 22 | E6: =D6/C6*100 -> 100.00
A7: 厂办大集体改革支出
A8: “三供一业”移交补助支出
A9: 国有企业办职教幼教补助支出
A10: 国有企业办公共服务机构移交补助支出
A11: 国有企业退休人员社会化管理补助支出 | C11: 22 | D11: 22 | E11: =D11/C11*100 -> 100.00
A12: 国有企业棚户区改造支出
A13: 国有企业改革成本支出
A14: 离休干部医药费补助支出
A15: 金融企业改革性支出
A16: 其他解决历史遗留问题及改革成本支出
A17: 国有企业资本金注入 | C17: 800 | D17: 800 | E17: =D17/C17*100 -> 100.00
A18: 国有经济结构调整支出
A19: 公益性设施投资支出
A20: 前瞻性战略性产业发展支出
A21: 生态环境保护支出
A22: 支持科技进步支出
A23: 保障国家经济安全支出
A24: 金融企业资本性支出
A25: 其他国有企业资本金注入 | C25: 800 | D25: 800 | E25: =D25/C25*100 -> 100.00
A26: 国有企业政策性补贴
A27: 其他国有资本经营预算支出
A28: 合计 | C28: 822 | D28: 822 | E28: =D28/C28*100 -> 100.00

Sheet 22.国有资本经营预算收支决算平衡表
A1: 2023年盐边县国有资本经营预算收支决算平衡表
C2: 单位：万元
A3: 科 目 | B3: 决 算 数 | C3: 科 目 | D3: 决算数
A4: 国有资本经营预算收入 | B4: 800 | C4: 国有资本经营预算支出 | D4: 822
A5: 国有资本经营预算上级补助收入 | B5: 7 | C5: 国有资本经营预算补助下级支出
A6: 国有资本经营预算下级上解收入 | C6: 国有资本经营预算上解上级支出
A7: 国有资本经营预算上年结余 | B7: 15 | C7: 国有资本经营预算调出资金
C8: 国有资本经营预算年终结余
A9: 收 入 总 计 | B9: 822 | C9: 支 出 总 计 | D9: 822

Sheet 23.县本级国有资本经营预算收入决算表
A1: 2023年盐边县本级国有资本经营预算收入决算表
E2: 单位：万元，%
A3: 科 目 | B3: 年初预算数 | C3: 调整预算数 | D3: 决 算 数 | E3: 为调整预算 | F3: 为上年决算
A4: 利润收入 | B4: 800 | C4: 800 | D4: 800 | E4: =D4/C4*100 -> 100.00 | F4: 160.00
A5: 投资服务企业利润收入 | B5: 800 | C5: 800 | D5: 800 | E5: =D5/C5*100 -> 100.00 | F5: 160.00
A6: 金融企业利润收入
A7: 其他国有资本经营预算企业利润收入
A8: 股利、股息收入
A9: 国有控股公司股利、股息收入
A10: 国有参股公司股利、股息收入
A11: 金融企业股利、股息收入
A12: 其他国有资本经营预算企业股利、股息收入
A13: 产权转让收入
A14: 清算收入
A15: 其他国有资本经营预算收入
A16: 合计 | B16: 800 | C16: 800 | D16: 800 | E16: =D16/C16*100 -> 100.00 | F16: 160.00

Sheet 24.县本级国有资本经营预算支出决算表
A1: 2023年盐边县本级国有资本经营预算支出决算表
E2: 单位：万元，%
A3: 科 目 | B3: 年初预算数 | C3: 调整预算数 | D3: 决 算 数 | E3: 为调整预算 | F3: 为上年决算
A4: 社会保障和就业支出
A5: 国有资本经营预算支出 | C5: 822 | D5: 822 | E5: =D5/C5*100 -> 100.00
A6: 解决历史遗留问题及改革成本支出 | C6: 22 | D6: 22 | E6: =D6/C6*100 -> 100.00
A7: 厂办大集体改革支出
A8: “三供一业”移交补助支出
A9: 国有企业办职教幼教补助支出
A10: 国有企业办公共服务机构移交补助支出
A11: 国有企业退休人员社会化管理补助支出 | C11: 22 | D11: 22 | E11: =D11/C11*100 -> 100.00
A12: 国有企业棚户区改造支出
A13: 国有企业改革成本支出
A14: 离休干部医药费补助支出
A15: 金融企业改革性支出
A16: 其他解决历史遗留问题及改革成本支出
A17: 国有企业资本金注入 | C17: 800 | D17: 800 | E17: =D17/C17*100 -> 100.00
A18: 国有经济结构调整支出
A19: 公益性设施投资支出
A20: 前瞻性战略性产业发展支出
A21: 生态环境保护支出
A22: 支持科技进步支出
A23: 保障国家经济安全支出
A24: 金融企业资本性支出
A25: 其他国有企业资本金注入 | C25: 800 | D25: 800 | E25: =D25/C25*100 -> 100.00
A26: 国有企业政策性补贴
A27: 其他国有资本经营预算支出
A28: 合计 | C28: 822 | D28: 822 | E28: =D28/C28*100 -> 100.00

Sheet 25.县本级国有资本经营预算收支决算表
A1: 2023年盐边县国有资本经营预算收支决算平衡表
C2: 单位：万元
A3: 科 目 | B3: 决 算 数 | C3: 科 目 | D3: 决算数
A4: 国有资本经营预算收入 | B4: 800 | C4: 国有资本经营预算支出 | D4: 822
A5: 国有资本经营预算上级补助收入 | B5: 7 | C5: 国有资本经营预算补助下级支出
A6: 国有资本经营预算下级上解收入 | C6: 国有资本经营预算上解上级支出
A7: 国有资本经营预算上年结余 | B7: 15 | C7: 国有资本经营预算调出资金
C8: 国有资本经营预算年终结余
A9: 收 入 总 计 | B9: 822 | C9: 支 出 总 计 | D9: 822

Sheet 26.对下国有资本经营预算转移支付决算表
A1: 2023年盐边县对下国有资本经营预算转移支付决算表
D2: 单位：万元，%
A3: 预 算 科 目 | B3: 预算数 | C3: 决算数 | D3: 为预算
A4: 一、解决历史遗留问题及改革成本支出
A5: 厂办大集体改革支出
A6: “三供一业”移交补助支出
A7: 国有企业办职教幼教补助支出
A8: ……
A9: ……
A10: ……
A11: 其他解决历史遗留问题及改革成本支出
A13: 合计
A14: 备注：盐边县本级无对下国有资本经营预算转移支付支出。

Sheet 27.社会保险基金收入决算表
A1: 2023年盐边县社会保险基金预算收入决算表
E2: 单位：万元，%
A3: 科 目 | B3: 年初预算数 | C3: 调整预算数 | D3: 决 算 数 | E3: 为调整预算 | F3: 为上年决算
A4: 城乡居民基本养老保险基金收入
A5: 社会保险费收入
A6: 财政补贴收入
A7: 利息收入
A8: 委托投资收益
A9: 转移收入
A10: 其他收入
A11: 全国统筹调剂资金收入
A12: 职工基本医疗保险（含生育保险）基金收入
A13: 社会保险费收入
A14: 财政补贴收入
A15: 利息收入
A16: 委托投资收益
A17: 转移收入
A18: 其他收入
A19: 全国统筹调剂资金收入
A20: 城乡居民基本医疗保险基金收入
A21: 社会保险费收入
A22: 财政补贴收入
A23: 利息收入
A24: 委托投资收益
A25: 转移收入
A26: 其他收入
A27: 全国统筹调剂资金收入
A28: 合计
A29: 说明：由于社保基金上划市级，我县本级无社保基金收入。

Sheet 28.社会保险基金支出决算表
A1: 2023年盐边县社会保险基金预算支出决算表
E2: 单位：万元，%
A3: 科 目 | B3: 年初预算数 | C3: 调整预算数 | D3: 决 算 数 | E3: 为调整预算 | F3: 为上年决算
A4: 城乡居民基本养老保险基金支出
A5: 社会保险待遇支出
A6: 转移支出
A7: 其他支出
A8: 全国统筹调剂资金支出
A9: 职工基本医疗保险（含生育保险）基金支出
A10: 社会保险待遇支出
A11: 转移支出
A12: 其他支出
A13: 全国统筹调剂资金支出
A14: 城乡居民基本医疗保险基金支出
A15: 社会保险待遇支出
A16: 大病医疗保险支出
A17: 其他支出
A18: 社会保险基金支出合计
A19: 说明：由于社保基金上划市级，我县无社保基金支出

Sheet 29.社会保险基金收支平衡表
A1: 2023年盐边县社会保险基金预算收支决算平衡表
F2: 单位：万元
A3: 科目 | B3: 决算数 | D3: 科目 | E3: 决算数
B4: 全县 | C4: 县级 | E4: 全县 | F4: 县级
A5: 社会保险基金收入 | D5: 社会保险基金支出
A6: 企业职工基本养老保险基金收入 | D6: 企业职工基本养老保险基金支出
A7: 城乡居民基本养老保险基金收入 | D7: 城乡居民基本养老保险基金支出
A8: 职工基本医疗保险(含生育保险）基金收入 | D8: 职工基本医疗保险(含生育保险）基金支出
A9: 城乡居民基本医疗保险基金收入 | D9: 城乡居民基本医疗保险基金支出
A10: 工伤保险基金收入 | D10: 工伤保险基金支出
A11: 失业保险基金收入 | D11: 失业保险基金支出
A12: 上年滚存结余 | D12: 年终滚存结余
A13: 社会保险基金总收入 | D13: 社会保险基金总支出
A14: 说明：由于社保基金上划市级，我县无社保基金收支

Sheet 30.县本级社会保险基金收入决算表
A1: 2023年盐边县本级社会保险基金预算收入决算表
E2: 单位：万元，%
A3: 科 目 | B3: 年初预算数 | C3: 调整预算数 | D3: 决 算 数 | E3: 为调整预算 | F3: 为上年决算
A4: 城乡居民基本养老保险基金收入
A5: 社会保险费收入
A6: 财政补贴收入
A7: 利息收入
A8: 委托投资收益
A9: 转移收入
A10: 其他收入
A11: 全国统筹调剂资金收入
A12: 职工基本医疗保险（含生育保险）基金收入
A13: 社会保险费收入
A14: 财政补贴收入
A15: 利息收入
A16: 委托投资收益
A17: 转移收入
A18: 其他收入
A19: 全国统筹调剂资金收入
A20: 城乡居民基本医疗保险基金收入
A21: 社会保险费收入
A22: 财政补贴收入
A23: 利息收入
A24: 委托投资收益
A25: 转移收入
A26: 其他收入
A27: 全国统筹调剂资金收入
A28: 合计
A29: 说明：由于社保基金上划市级，我县本级无社保基金收入。

Sheet 31.县本级社会保险基金支出决算表
A1: 2023年盐边县社会保险基金预算支出决算表
E2: 单位：万元，%
A3: 科 目 | B3: 年初预算数 | C3: 调整预算数 | D3: 决 算 数 | E3: 为调整预算 | F3: 为上年决算
A4: 城乡居民基本养老保险基金支出
A5: 社会保险待遇支出
A6: 转移支出
A7: 其他支出
A8: 全国统筹调剂资金支出
A9: 职工基本医疗保险（含生育保险）基金支出
A10: 社会保险待遇支出
A11: 转移支出
A12: 其他支出
A13: 全国统筹调剂资金支出
A14: 城乡居民基本医疗保险基金支出
A15: 社会保险待遇支出
A16: 大病医疗保险支出
A17: 其他支出
A18: 社会保险基金支出合计
A19: 说明：由于社保基金上划市级，我县无社保基金支出

Sheet 32.县本级社会保险基金收支平衡表
A1: 2023年盐边县本级社会保险基金预算收支决算平衡表
F2: 单位：万元
A3: 科目 | B3: 决算数 | D3: 科目 | E3: 决算数
B4: 全县 | C4: 县级 | E4: 全县 | F4: 县级
A5: 社会保险基金收入 | D5: 社会保险基金支出
A6: 企业职工基本养老保险基金收入 | D6: 企业职工基本养老保险基金支出
A7: 城乡居民基本养老保险基金收入 | D7: 城乡居民基本养老保险基金支出
A8: 职工基本医疗保险(含生育保险）基金收入 | D8: 职工基本医疗保险(含生育保险）基金支出
A9: 城乡居民基本医疗保险基金收入 | D9: 城乡居民基本医疗保险基金支出
A10: 工伤保险基金收入 | D10: 工伤保险基金支出
A11: 失业保险基金收入 | D11: 失业保险基金支出
A12: 上年滚存结余 | D12: 年终滚存结余
A13: 社会保险基金总收入 | D13: 社会保险基金总支出
A14: 说明：由于社保基金上划市级，我县无社保基金收支

Sheet 33.地方政府一般债务余额
A1: 2023年盐边县地方政府一般债务余额情况表
C2: 单位：万元
A3: 项 目 | B3: 一般债务
B4: 合计 | C4: 一般债券 | D4: 非债券 形式债务
A5: 一、2022年末余额 | B5: 134,235 | C5: 134,235
A6: 二、2023年新增额 | B6: 24,453 | C6: 24,453
A7: 三、2023年或有债务转化额
A8: 四、2023年偿还额 | B8: 20,953 | C8: 20,953
A9: 五、2023年末余额 | B9: 137,735 | C9: 137,735
A10: 注：本表反映的举借额和偿还额均包含再融资债券。

Sheet 34.地方政府专项债务余额
A1: 2023年盐边县地方政府专项债务余额情况表
C2: 单位：万元
A3: 项 目 | B3: 专项债务
B4: 合计 | C4: 专项债券 | D4: 非债券 形式债务
A5: 一、2022年末余额 | B5: 106,640 | C5: 106,640
A6: 二、2023年新增额 | B6: 83,800 | C6: 83,800
A7: 三、2023年或有债务转化额
A8: 四、2023年偿还额 | B8: 22,100 | C8: 22,100
A9: 五、2023年末余额 | B9: 168,340 | C9: 168,340
A10: 注：本表反映的举借额和偿还额均包含再融资债券。

Sheet 35.地方政府性债务余额
A1: 2023年盐边县地方政府债务余额情况汇总表
E2: 单位：万元
A3: 项 目 | B3: 政府债务 | F3: 或有债务
B4: 合计 | C4: 一般债券 | D4: 专项债券 | E4: 非债券 形式债务
A5: 一、2022年末余额 | B5: 240,875 | C5: 134,235 | D5: 106,640 | F5: 7,987
A6: 二、2023年新增额 | B6: 108,253 | C6: 24,453 | D6: 83,800
A7: 三、2023年或有债务转化额
A8: 四、2023年偿还额 | B8: 43,053 | C8: 20,953 | D8: 22,100 | F8: 5,400
A9: 五、2023年末余额 | B9: 306,075 | C9: 137,735 | D9: 168,340 | F9: 2,587
A10: 注：本表反映的举借额和偿还额均包含再融资债券。

Sheet 36.地方政府债券使用情况
A1: 2023年盐边县地方政府债券资金安排使用情况表
C2: 单位：万元
A3: 市州 | B3: 地区 | C3: 项目名称 | D3: 项目领域 | E3: 项目主管 部门 | F3: 项目实施单位 | G3: 债券 性质 | H3: 债券 规模 | I3: 发行 时间
A4: 攀枝花市 | B4: 盐边县 | C4: 盐边县消防救援大队装备采购项目 | D4: 其他社会事业 | E4: 盐边县消防救援大队 | F4: 盐边县消防救援大队 | G4: 一般债券 | H4: 80 | I4: 2023-01
A5: 攀枝花市 | B5: 盐边县 | C5: 盐边县消防救援大队建设项目 | D5: 其他社会事业 | E5: 盐边县消防救援大队 | F5: 盐边县消防救援大队 | G5: 一般债券 | H5: 612 | I5: 2023-01
A6: 攀枝花市 | B6: 盐边县 | C6: 盐边县公安局地下车库暨县应急指挥中心人防工程 | D6: 其他社会事业 | E6: 盐边县公安局 | F6: 盐边县公安局 | G6: 一般债券 | H6: 227 | I6: 2023-01
A7: 攀枝花市 | B7: 盐边县 | C7: 盐边县公安局业务技术用房及盐边县涉案财物集中管理中心信息化建设 | D7: 其他社会事业 | E7: 盐边县公安局 | F7: 盐边县公安局 | G7: 一般债券 | H7: 400 | I7: 2023-01
A8: 攀枝花市 | B8: 盐边县 | C8: 盐边县疾控中心能力提升建设项目 | D8: 卫生健康（含应急医疗救治设施、公共卫生设施） | E8: 盐边县卫生健康局 | F8: 盐边县卫生健康局 | G8: 一般债券 | H8: 100 | I8: 2023-01
A9: 攀枝花市 | B9: 盐边县 | C9: 盐边县桐子林粮食储备库（新建）项目 | D9: 粮食仓储物流设施 | E9: 盐边县发展改革局 | F9: 盐边县发展改革局 | G9: 一般债券 | H9: 800 | I9: 2023-01
A10: 攀枝花市 | B10: 盐边县 | C10: 盐边县2023年小型水库大坝安全监测项目 | D10: 水利 | E10: 盐边县水利局 | F10: 盐边县水利局 | G10: 一般债券 | H10: 12 | I10: 2023-01
A11: 攀枝花市 | B11: 盐边县 | C11: 盐边县2023年小型水库雨水情测报项目 | D11: 水利 | E11: 盐边县水利局 | F11: 盐边县水利局 | G11: 一般债券 | H11: 104 | I11: 2023-01
A12: 攀枝花市 | B12: 盐边县 | C12: 盐边县第一初级中学校改扩建工程项目 | D12: 其他社会事业 | E12: 盐边县教育和体育局 | F12: 盐边县教育和体育局 | G12: 一般债券 | H12: 365 | I12: 2023-07
A13: 攀枝花市 | B13: 盐边县 | C13: S221盐边县渔门镇桑园大桥拆除重建工程 | D13: 其他社会事业 | E13: 盐边县交通运输局 | F13: 盐边县交通运输局 | G13: 一般债券 | H13: 800 | I13: 2023-07
A14: 攀枝花市 | B14: 盐边县 | C14: 盐边县第二人民医院建设工程项目 | D14: 卫生健康（含应急医疗救治设施、公共卫生设施） | E14: 盐边县卫生健康局 | F14: 盐边县卫生健康局 | G14: 专项债券 | H14: 5,000 | I14: 2023-01
A15: 攀枝花市 | B15: 盐边县 | C15: 盐边县城镇垃圾综合处理建设项目 | D15: 城镇污水垃圾收集处理 | E15: 县综合行政执法局 | F15: 县综合行政执法局 | G15: 专项债券 | H15: 2,000 | I15: 2023-02
A16: 攀枝花市 | B16: 盐边县 | C16: 备选库项目-盐边站站前基础设施配套项目 | D16: 城市停车场 | E16: 盐边县住建局 | F16: 盐边发展（集团）有限责任公司 | G16: 专项债券 | H16: 4,000 | I16: 2023-07
A17: 攀枝花市 | B17: 盐边县 | C17: 备选库项目-盐边钒钛产业开发区钛材加工园基础设施建设项目二期工程 | D17: 产业园区基础设施 | E17: 盐边县钒钛产业开发区管委会 | F17: 盐边发展（集团）有限责任公司 | G17: 专项债券 | H17: 33,500 | I17: 2023-04
A18: 攀枝花市 | B18: 盐边县 | C18: 盐边县保障性租赁住房建设项目 | D18: 保障性租赁住房 | E18: 盐边县住建局 | F18: 盐边发展（集团）有限责任公司 | G18: 专项债券 | H18: 3,200 | I18: 2023-04
A19: 攀枝花市 | B19: 盐边县 | C19: 盐边县二滩南部片区供水工程 | D19: 水利 | E19: 盐边县水利局 | F19: 盐边县水利局 | G19: 专项债券 | H19: 2,000 | I19: 2023-07
A20: 攀枝花市 | B20: 盐边县 | C20: 盐边县农产品物流交易中心项目 | D20: 城乡冷链等物流基础设施（含国家物流枢纽、农产品批发市场） | E20: 盐边县农业农村局 | F20: 盐边县农业农村局 | G20: 专项债券 | H20: 12,000 | I20: 2023-07
B21: 合计 | H21: =SUM(H4:H20) -> 65,200

Sheet 37.地方政府债务限额及余额情况
A1: 2023年盐边县地方政府债务限额及余额情况决算表
G2: 单位：万元
A3: 地 区 | B3: 2023年债务限额 | E3: 2023年债务余额
B4: 小计 | C4: 一般债务 | D4: 专项债务 | E4: 小计 | F4: 一般债务 | G4: 专项债务
A5: 公 式 | B5: A=B+C | C5: B | D5: C | E5: D=E+F | F5: E | G5: F
A6: 盐边县 | B6: 308,935 | C6: 139,514 | D6: 169,421 | E6: =F6+G6 -> 306,075 | F6: 137,735 | G6: 168,340
A7: 注：省级尚未批复地方债务限额，此表债务限额数据为预计数。

Sheet 38.政府债务十年到期情况
A1: 盐边县政府债券十年到期情况表
I2: 单位：万元
A3: 地 区 | B3: 2024年 | C3: 2025年 | D3: 2026年 | E3: 2027年 | F3: 2028年 | G3: 2029年 | H3: 2030年 | I3: 2031年 | J3: 2032年 | K3: 2033年
A4: 盐边县 | B4: 35,764 | C4: 14,878 | D4: 8,407 | E4: 9,435 | F4: 20,120 | G4: 20,121 | H4: 34,390 | I4: 5,130 | J4: 9,197 | K4: 10,951

Sheet 39.地方政府债务还本付息情况表
A1: 2023年盐边县地方政府债务还本付息情况表
G2: 单位：万元
A3: 地区 | B3: 2023年政府债务还本支出 | E3: 2023年政府债务付息支出
C4: 一般债务还本支出 | D4: 专项债务还本支出 | F4: 一般债务付息支出 | G4: 专项债务付息支出
A5: 公式 | B5: A=B+C | C5: B | D5: C | E5: D=E+F | F5: E | G5: F
A6: 盐边县 | B6: 43053 | C6: 20953 | D6: 22100 | E6: 8891 | F6: 4737 | G6: 4154

Sheet 40.新增一般债券和专项债券情况表
A1: 2023年盐边县新增地方政府债券情况表
D2: 单位：万元
A3: 地 区 | B3: 新增债券发行情况
C4: 一般债券 | D4: 专项债券
A5: 公 式 | B5: A=B+C | C5: B | D5: C
A6: 盐边县 | B6: 65200.00 | C6: 3500.00 | D6: 61700.00

Sheet 41.专项债券收入、支出及专项收入情况表
A1: 2023年盐边县专项债券收入、支出及专项收入情况表
B2: 单位：亿元
A3: 项目 | B3: 本级
A4: 一、专项债券收入 | B4: 8.38
A5: 二、专项债券支出 | B5: 7.90
A6: 三、还本付息 | B6: 2.63
A7: 其中：还本决算数 | B7: 2.21
A8: 付息决算数 | B8: 0.42
A9: 四、项目负债规模 | B9: 6.17
A10: 五、已发行专项债券期限（年） | B10: 20
A11: 六、已发行专项债券利率（%） | B11: 2.38

Sheet 42.重大政府投资计划和重大投资项目表
A1: 2023年盐边县县本级重大政府投资计划和重大投资项目表
C2: 单位：万元
A3: 项目名称 | B3: 决算数 | C3: 项目概况
A4: 城市燃气管道等老化更新改造 | B4: 3218 | C4: 改造更新庭院管道11058米，立管23496米，配套埋地阀19座；更换中一级低压调压箱38台；用户端更换橡胶软管14336根，加装燃气报警器及配套切断阀7168个，自闭阀14336个。
A5: 2023年灾后重建和防灾减灾能力建设专项（排水设施方向） | B5: 675 | C5: 清源社区雨污分流、县医院段管网改造、桐子林社区月谭小区管网改造，主要工程量为建设排水管网DN30、DN1000规格共计约3549米，PVCU排水管规格DN100DN200约844米，钢管325规格187米，排水沟1195米，污水井153座、跌水井20座等雨污处理设施。
